Workbook

Sheet Cover Page
D1: Add company logo
N2: Version 23.4a (for incinerators) - 15/11/2023
N4: Note that there is another version of this template available for co-incinerators
B8: Add photo
N13: Notes:
N14: This template may require adjustments by individual operators to meet specific reporting requirements as defined in the site Permit(s)
B29: Annual Performance Report 2023
B31: Permit EPR/BT7116IW
B33: Lakeside Energy From Waste Ltd
B37: Lakeside
B39: Year: | C39: 2023
B41: Address: | C41: Lakeside EFW Ltd, Lakeside road, Colnbrook,
D42: Berkshire, SL3 0FE
B43: Tel: | C43: 01753 688430
B45: Email: | C45: martin.rogers@lakesideefw.co.uk
B47: Prepared by: | C47: Martin Rogers | F47: Position: | G47: EHS Manager
B49: Approved by: | C49: Danny Coulston | F49: Position: | G49: Director of Operations
B51: Version: | C51: 1
B53: Issue Date: | C53: 2024-01-30

Sheet Contents
A1: =+'Cover Page'!$B$29 -> Annual Performance Report 2023 | E1: =+'Cover Page'!$B$33 -> Lakeside Energy From Waste Ltd
A3: Contents | K3: Notes:
A4: Section | B4: Subject | H4: Page | K4: Section references and Page nos. to be inserted
B5: Facility Information | H5: 3 | K5: Sections and Subjects may require adjustment by individual operators to meet specific reporting requirements as defined in the sites Permit(s)
B6: Operational Data | H6: 4
B7: Operational Summary | H7: 6
B8: Performance Form 1 | H8: 7
B9: Energy Form 1 | H9: 8
B10: Permit Compliance | H10: 9
B11: Improvements | H11: 10
B12: Public Liasion | H12: 11
B13: Carbon dioxide and nitrous oxide emissions | H13: 12
B14: Residue Quality | H14: 14
B15: Emissions to Water | H15: 15
B16: Emissions to Air (periodically monitored) | H16: 16
B17: Emissions to Air (continuously monitored) | H17: 17
B18: Hydrogen Chloride emissions | H18: 18
B19: Sulphur Dioxdie emsissions | H19: 19
B20: Oxides of Notrigen emissions | H20: 20
B21: Total Organic Carbon emissions | H21: 21
B22: Particulate Matter emissions | H22: 22
B23: Carbon Monoxide emissions | H23: 24
B24: Ammonia emissions | H24: 25
A27: Version Control
A28: Section | B28: Information | H28: Date
B29: Version 1 | H29: 2024-01-30
A35: Distribution
A36: Copy | B36: Name, Role | H36: No.
A45: This report is required under the Industrial Emissions Directive’s Article 55(2) requirements on reporting and public information on waste incineration plants and co-incineration plants, which require the operator to produce an annual report on the functioning and monitoring of the plant and make it available to the public.

Sheet Facility Info
A1: =+'Cover Page'!$B$29 -> Annual Performance Report 2023 | E1: =+'Cover Page'!$B$33 -> Lakeside Energy From Waste Ltd
A3: Plant Description and Design | K3: Notes:
A5: Lakeside Energy from Waste (EfW) A joint venture project between two of the UK’s leading recycling and waste management companies; Grundon Waste Management and Viridor. The Lakeside EfW facility at Colnbrook near Slough has been operational since 2010. Using advanced technology, this plant is capable of processessing over 450,000 tonnes of residual waste per year, generating 37MW of power – enough to provide electricity to every household in Slough (56,000 homes). There is an education centre adjacent to Lakeside EfW, where schools and other groups can learn about sustainable waste management and energy from waste. | K5: Include summary of plant design, design capacity, no. of combustion lines, electrical and heat capacity and any other general information that descibes the facility, its location and purpose
A20: Summary of Operational Processes and Procedures
A22: Lakeside operate an Integrated Management System (IMS) that is ISO 14001, ISO 45001, ISO 9001, ISO 22301 and ISO 50001 certified. It includes all the procedures for receiving and inspecting waste, auditing suppliers to ensure waste quality and compliance. Operations includes procedures for running the plant, showing how to start a line, run a line and shutdown a line. EHS includes procedures for monitoring and reporting compliance. Maintenance includes all the procedures for planned maintenance, unplanned maintenance, outages and preventative maintenance. | K22: Include summary of key processes and procedures such as (but not limited to); waste reception, control rooms, grate, bed and bolier, energy & heat generation, cooling systems, residue management, emission controls, health and safety systems, maintenance

Sheet Operational Data
A1: =+'Cover Page'!$B$29 -> Annual Performance Report 2023 | E1: =+'Cover Page'!$B$33 -> Lakeside Energy From Waste Ltd
A3: Operational Data
A4: Plant Size | B4: 468280 | D4: tonnes pa | F4: MWth | H4: MWe | J4: Notes:
A5: No. of combustion lines | B5: 2 | D5: No. of Turbines: | F5: 1 | J5: * - RDF to include SRF
J6: ** - Combusted tonnage = tonnes delivered in period + (tonnes in bunker at start of period – tonnes in bunker at end of period), or equivalent calculation depending on plant type
A7: Waste types received | B7: Unit | C7: Q1 | D7: Q2 | E7: Q3 | F7: Q4 | G7: Year Total | H7: %
A8: Household / Local Authority | B8: tonnes | C8: 65227 | D8: 49928 | E8: 63880 | F8: 68647 | G8: =SUM(C8:F8) -> 247682 | H8: =IF(G8>0,G8/$G$18,"-") -> 0.6000013566
A9: Commercial & Industrial | C9: 43283 | D9: 32976 | E9: 41824 | F9: 45202 | G9: =SUM(C9:F9) -> 163285 | H9: 0.3955524483 | J9: *** - CHP plants only
A10: Hazardous | C10: 59.48 | G10: 59.48 | H10: 0.0001440883096 | J10: **** Availability Definition: 'the availability of a line is to be calculated by the number of hours the line reported Continuously Monitored emission levels to the Regulator through the calendar year divided by the total number of hours in that year. The overall plant availability is calculated as the Mean of all lines in the plant. For clarity this includes periods of abnormal operation.' Rationale: The primary function of an Energy from Waste facility is the disposal of waste. It follows therefore that the availability of a plant is determined by the period of time a facility spends undertaking this activity.
A11: Clinical | C11: 142.3 | D11: 308.5 | E11: 761.82 | F11: 563.3 | G11: 1775.92 | H11: 0.004302106771
A12: Waste wood (biomass) | G12: 0 | H12: -
A13: Refuse Derived Fuel * - H'hold/LA | G13: =SUM(C13:F13) -> 0 | H13: -
A14: Refuse Derived Fuel * - C&I | G14: 0 | H14: -
A15: Other [Please specify] | G15: 0 | H15: -
A16: Other [Please specify] | G16: 0 | H16: -
A17: Other [Please specify] | G17: 0 | H17: -
A18: Total waste received | C18: =SUM(C8:C17) -> 108711.78 | D18: =SUM(D8:D17) -> 83212.5 | E18: =SUM(E8:E17) -> 106465.82 | F18: =SUM(F8:F17) -> 114412.3 | G18: 412802.4
A19: Rejected Waste | C19: 6.5 | E19: 3 | G19: =SUM(C19:F19) -> 9.5 | H19: =IF(G19>0,G19/$G$18,"-") -> 2.301343209e-05
A20: Unprocessed waste transferred out | G20: =SUM(C20:F20) -> 0 | H20: =IF(G20>0,G20/$G$18,"-") -> -
A21: Total waste combusted ** | C21: 108704 | D21: 83213 | E21: 106463 | F21: 114412 | G21: =SUM(C21:F21) -> 412792
J22: Password for protected cells A password has been set to prevent accidental editing of cells with formulae. If you still need to make an edit for some reason then the password = 1234
A23: Energy Usage / Export | B23: Unit | C23: Q1 | D23: Q2 | E23: Q3 | F23: Q4 | G23: Year Total | H23: KWh/te
A24: Power Generated | B24: MWh | C24: 76255 | D24: 56020 | E24: 79189 | F24: 82374 | G24: =SUM(C24:F24) -> 293838 | H24: =IF(G24>0,G24*1000/$G$21,"-") -> 711.8306556
A25: Power Exported | C25: 68277 | D25: 49919 | E25: 71505 | F25: 74724 | G25: =SUM(C25:F25) -> 264425 | H25: =IF(G25>0,G25*1000/$G$21,"-") -> 640.5768523
A26: Power Used on site | C26: 7978 | D26: 6100 | E26: 7684 | F26: 7650 | G26: =SUM(C26:F26) -> 29412 | H26: =IF(G26>0,G26*1000/$G$21,"-") -> 71.25138084
A27: Power Imported | G27: 0 | H27: =IF(G27>0,G27*1000/$G$21,"-") -> -
A28: Parasitic Load | B28: % | C28: =IF(C24>0,1-C25/(C24+C27),"-") -> 0.1046226477 | D28: =IF(D24>0,1-D25/(D24+D27),"-") -> 0.108907533 | E28: =IF(E24>0,1-E25/(E24+E27),"-") -> 0.09703367892 | F28: =IF(F24>0,1-F25/(F24+F27),"-") -> 0.09286910918 | G28: =IF(G24>0,1-G25/(G24+G27),"-") -> 0.1000993745
A29: Thermal Energy Produced *** | B29: MWh | G29: =SUM(C29:F29) -> 0 | H29: =IF(G29>0,G29*1000/$G$21,"-") -> -
A30: Thermal Energy Exported *** | G30: 0 | H30: =IF(G30>0,G30*1000/$G$21,"-") -> -
A31: R1 value (if applicable) | B31: R1
A33: Waste Disposal & Recovery | B33: Unit | C33: Q1 | D33: Q2 | E33: Q3 | F33: Q4 | G33: Year Total | H33: % inputs
A34: APC Residues - produced | B34: tonnes | C34: 2951 | D34: 2388 | E34: 3115 | F34: 3259 | G34: =SUM(C34:F34) -> 11713 | H34: =IF(G34>0,G34/$G$21,"-") -> 0.02837506541
A35: IBA - produced | C35: 19757 | D35: 15080 | E35: 20120 | F35: 20391 | G35: 75348 | H35: =IF(G35>0,G35/$G$21,"-") -> 0.1825326072
A36: Metals recycling | C36: 1260 | D36: 927 | E36: 1170 | F36: 1324 | G36: =SUM(C36:F36) -> 4681 | H36: 0.01133985155
A37: Other - APC landfilled | C37: 0 | D37: 51.28 | E37: 0 | F37: 0 | G37: =SUM(C37:F37) -> 51.28 | H37: 0.0001242272137
A38: Other | C38: 0 | D38: 0 | E38: 0 | F38: 0 | G38: 0 | H38: -
A39: Other | C39: 0 | D39: 0 | E39: 0 | F39: 0 | G39: 0 | H39: -
A41: Raw Material Usage | B41: Unit | C41: Q1 | D41: Q2 | E41: Q3 | F41: Q4 | G41: Year Total | H41: kg or Ltr /te
A42: Mains Water | B42: ltrs | C42: 21470000 | D42: 17254000 | E42: 22150000 | F42: 20650000 | G42: =SUM(C42:F42) -> 81524000 | H42: =IF(G42>0,G42/$G$21,"-") -> 197.4941375
A43: Other Water | B43: ltrs | G43: 0 | H43: =IF(G43>0,G43/$G$21,"-") -> -
A44: Ammonia | B44: kgs | C44: 0 | D44: 222 | E44: 0 | F44: 0 | G44: 222 | H44: 0.0005378011202
A45: Urea | B45: kgs | G45: =SUM(C45:F45) -> 0 | H45: -
A46: Activated Carbon | B46: kgs | C46: 41146 | D46: 33496 | E46: 42990 | F46: 44084 | G46: 161716 | H46: 0.3917614682
A47: Lime / hydrated lime | B47: kgs | C47: 1205608 | D47: 962490 | E47: 1290378 | F47: 1339659 | G47: 4798135 | H47: 11.62361431
A48: Fuel oil | B48: ltrs | C48: 14979 | D48: 322761 | E48: 27403 | F48: 80966 | G48: 446109 | H48: 1.080711351
A49: Gas | B49: cuf | G49: 0
A50: Other | G50: 0
A52: Summary | B52: Line/Unit | C52: Q1 | D52: Q2 | E52: Q3 | F52: Q4 | G52: Year Total | I52: Hrs in year
A53: Availability of waste combustion by line, hrs **** | B53: 1 | C53: 2148 | D53: 1691 | E53: 2207 | F53: 2173 | G53: =SUM(C53:F53) -> 8219 | H53: =+G53/$I$53 -> 0.9382420091 | I53: 8760
B54: 2 | C54: 2159 | D54: 1709 | E54: 2107 | F54: 2208 | G54: 8183 | H54: =+G54/$I$53 -> 0.9341324201
B55: 3 | G55: 0 | H55: 0
B56: 4 | G56: 0 | H56: 0
B57: 5 | G57: =SUM(C57:F57) -> 0 | H57: 0
A58: Overall Availability, mean avg. of all lines, hrs | G58: =AVERAGE(G53:G54) -> 8201 | H58: 0.9361872146
A59: Hours of turbine operations, hrs | B59: 1 | C59: 2123 | D59: 2174 | E59: 2208 | F59: 2208 | G59: 8713 | H59: 0.9946347032
A60: Hours of turbine operations, hrs | B60: 2 | G60: 0 | H60: 0
A61: Hours of heat / steam export | G61: 0 | H61: =IF(B61>0,G60/I53,"n/a") -> n/a
A62: Net Calorific Value of waste | B62: MJ/kg | C62: 9417 | D62: 7262 | E62: 9502 | F62: 9653
A63: Abnormal Events | B63: qty. | D63: 2 | E63: 1 | G63: 3 | H63: =IF(G63>0,"yes","no") -> yes
A64: Abnormal operation | B64: hours | D64: 2 | E64: 0.5 | G64: 2.5 | H64: =+(G64)/I53 -> 0.0002853881279
A65: Permit Breaches | B65: qty. | D65: 2 | E65: 1 | G65: 3 | H65: =IF(G65>0,"yes","no") -> yes

Sheet Operational Summary
A1: =+'Cover Page'!$B$29 -> Annual Performance Report 2023 | E1: =+'Cover Page'!$B$33 -> Lakeside Energy From Waste Ltd
A3: Summary of Plant Operations and Maintenance during the reporting year | K3: Notes:
A5: Line A1 operated for 8219 hours an availability of 93.8%, with line A2 operating for 8183 hours giving an availability of 93.4%. The turbine ran for 8713 hours, an availability of 99.5 %. Both lines had a major outage, line A1 was off for 21 days in April, with A2 off for 20 days in May. Inkonel was carried out in the boiler to improve corrosion resistance. | K5: Include summary of key operational and/or mainteanance activity undertaken in the year, such as any major component upgrades and/or replacements
A29: Summary of Residue Handling for the reporting year
A31: Material and disposal point listed below. IBA Days : Transport Avenue, Brentford TW8 9HF APC Carbon8 - (deemed hazardous) Norfolk House, High Street, Brandon, Suffolk IP27 0AX, Tel 01842 812229, License: JP 3332/FK Carbon8 Aggregates Ltd, Aggregate production facility, Central Avenue, Hallen, Avonmouth, BS10 7SD, Licence: HP3638WW OVERSIZE Scrapped metal that has gone through the furnace. W N Thomas Metal Recycling, Stoke Gardens, Slough, Berkshire, SL1 3QA, Licence: CBDU80509 M D J Light, Greystone Quarry Top Yard, Southerham, Lewes, East Sussex, BN8 6JN, Licence: NP3333CF Lakeside installed a conveyor to be able to feed clinical waste directly to the furnace. | K31: Include in here a summary of residue handling regimes and destinations

Sheet Perf. Form 1
A1: =+'Cover Page'!C39 -> 2023 | B1: Annual Reporting Performance Form 1
A3: =+'Cover Page'!B31 -> Permit EPR/BT7116IW | F3: Operator: | G3: =+'Cover Page'!B37:I37 -> 0
A4: Facility: | B4: =+'Cover Page'!B33:I33 -> Lakeside Energy From Waste Ltd | F4: Form: | G4: Performance 1
A6: Reporting Period from: | D6: 2023-01-01 | F6: to: | G6: 2023-12-31
A8: =+A1 -> 2023 | B8: Annual Reporting of Waste Disposal and Recovery
A9: Waste Description | C9: Disposal Route(s) | E9: Disposal Tonnes | G9: Recovery Tonnes | I9: % / tonne of waste incinerated
A10: 1) Hazardous Wastes
A11: APC Residues | G11: 11713 | I11: =IF((E11+G11)>0,(E11+G11)/'Operational Data'!$G$21, "-") -> 0.02837506541
A12: IBA | I12: =IF((E12+G12)>0,(E12+G12)/'Operational Data'!$G$21, "-") -> -
I13: =IF((E13+G13)>0,(E13+G13)/'Operational Data'!$G$21, "-") -> -
I14: =IF((E14+G14)>0,(E14+G14)/'Operational Data'!$G$21, "-") -> -
A15: Total Hazardous Waste | E15: =SUM(E11:F14) -> 0 | G15: =SUM(G11:H14) -> 11713 | I15: =IF((E15+G15)>0,(E15+G15)/'Operational Data'!$G$21, "-") -> 0.02837506541
A17: 2) Non-Hazardous Wastes
A18: IBA | G18: 75348 | I18: =IF((E18+G18)>0,(E18+G18)/'Operational Data'!$G$21, "-") -> 0.1825326072
A19: Ferrous Metal | G19: 4681 | I19: =IF((E19+G19)>0,(E19+G19)/'Operational Data'!$G$21, "-") -> 0.01133985155
A20: Process Water | I20: =IF((E20+G20)>0,(E20+G20)/'Operational Data'!$G$21, "-") -> -
I21: =IF((E21+G21)>0,(E21+G21)/'Operational Data'!$G$21, "-") -> -
I22: =IF((E22+G22)>0,(E22+G22)/'Operational Data'!$G$21, "-") -> -
A23: Total Non-Hazardous Waste | E23: =SUM(E18:F22) -> 0 | G23: =SUM(G18:H22) -> 80029 | I23: =IF((E23+G23)>0,(E23+G23)/'Operational Data'!$G$21, "-") -> 0.1938724588
A24: TOTAL WASTE | E24: =+E23+E15 -> 0 | G24: =+G23+G15 -> 91742 | I24: =IF((E24+G24)>0,(E24+G24)/'Operational Data'!$G$21, "-") -> 0.2222475242
A26: Operator’s comments :
A31: =+A1 -> 2023 | B31: Annual Reporting of Water and Other Raw Material Usage
A32: Raw Material | E32: Usage | G32: Unit | H32: Specific Useage | J32: Unit
A33: Mains Water | E33: =+'Operational Data'!G42 -> 81524000 | G33: m3 | H33: =IF(E33>0,E33/'Operational Data'!$G$21,"-") -> 197.4941375 | J33: m3/te
A34: Total Water | E34: =+'Operational Data'!G43+'Operational Data'!G42 -> 81524000 | G34: m3 | H34: =IF(E34>0,E34/'Operational Data'!$G$21,"-") -> 197.4941375 | J34: m3/te
A35: Urea / Ammonia | E35: =+'Operational Data'!G44 -> 222 | G35: kg | H35: =IF(E35>0,E35/'Operational Data'!$G$21,"-") -> 0.0005378011202 | J35: kg/te
A36: Activated Carbon | E36: =+'Operational Data'!G46 -> 161716 | G36: kg | H36: =IF(E36>0,E36/'Operational Data'!$G$21,"-") -> 0.3917614682 | J36: kg/te
A37: Lime / hydrated lime / Sodium Bicarb. | E37: =+'Operational Data'!G47 -> 4798135 | G37: kg | H37: =IF(E37>0,E37/'Operational Data'!$G$21,"-") -> 11.62361431 | J37: kg/te
A39: Operator’s comments :
A43: =+A31 -> 2023 | B43: Annual Reporting of other performance indicators
A44: Parameter | C44: Results by Line
C45: A1 | D45: A2 | E45: A3 | F45: A4 | G45: A5 | I45: Turbine 1 | J45: Turbine 2
A46: Operating hours for the year, hours | C46: 8219 | D46: 8183 | I46: 8713
A47: Number of periods of abnormal operation, qty.
A48: Cumulative hours of abnormal operation for this year, hours
A50: Operator’s comments :
A54: Signed: | G54: Date: | H54: 2024-01-10

Sheet Energy Form 1
A1: =+'Cover Page'!C39 -> 2023 | B1: Annual Reporting of Energy Usage/Export
A3: =+'Cover Page'!B31 -> Permit EPR/BT7116IW | F3: Operator: | G3: =+'Cover Page'!B37:I37 -> 0
A5: Facility: | B5: =+'Cover Page'!B33:I33 -> Lakeside Energy From Waste Ltd | F5: Form: | G5: Energy 1
A7: Reporting Period from: | D7: =+'Perf. Form 1'!D6:E6 -> 2023-01-01 | F7: to: | G7: =+'Perf. Form 1'!G6:H6 -> 2023-12-31
A9: Energy Source | D9: Energy Usage | F9: Unit | G9: Specific Useage (KWh/tonne incinerated
A10: Electricity Produced | D10: =+'Operational Data'!G24 -> 293838 | F10: MWh | G10: =+'Operational Data'!H24 -> 711.8306556
A11: Electricity Imported | D11: =+'Operational Data'!G27 -> 0 | F11: MWh | G11: =+'Operational Data'!H27 -> -
A12: Electricity Exported | D12: =+'Operational Data'!G25 -> 264425 | F12: MWh | G12: =+'Operational Data'!H25 -> 640.5768523
A13: Gas Oil | D13: 446109 | F13: litres
A14: Steam/hot water exported | D14: =+'Operational Data'!G30 -> 0 | F14: GWh | G14: =+'Operational Data'!H30 -> -
A18: Operator’s comments :
A29: Signed: | G29: Date: | H29: 2024-01-30

Sheet Permit Compliance
A1: =+'Cover Page'!$B$29 -> Annual Performance Report 2023 | E1: =+'Cover Page'!$B$33 -> Lakeside Energy From Waste Ltd
A3: Summary of Permit Compliance
A5: Compliance with permit limits for continuously monitored pollutants
A7: The plant met its emission limits as shown in the table below:
A8: Substance | C8: Percentage time compliant during operationNote 1 | L8: Notes:
C9: Half-hourly limit | F9: Daily limit | L9: Note 1: Please report to 2 decimal places, i.e. xx.xx% Note 2: Please provide a brief summary of each notification or non-compliance in the table (rather than just referring to notifications that were sent to the Regulator), including stating the value of measured result for any ELV exceedances.
A10: Particulates | C10: 0.9999 | F10: 1
A11: Oxides of nitrogen | C11: 1 | F11: 1
A12: Sulphur dioxide | C12: 0.9999 | F12: 1
A13: Carbon monoxide | C13: 100% 95% of 10-min averages | F13: 1
A14: Total organic carbon | C14: 1 | F14: 1
A15: Hydrogen chloride | C15: 1 | F15: 1
A16: Hydrogen fluoride | C16: 1 | F16: 1
C17: 1 | F17: 1
A19: Summary of any notifications or non-compliances under the permit
A20: Date | B20: Summary of notification or non-compliance [including Line/Reference]Note 2 | E20: Reason | H20: Measures taken to prevent reoccurrence
A21: 2023-06-01 | B21: SO2 exceedence. | E21: Flow meter cleaning | H21: Cleaned meter
A22: 2023-06-02 | B22: SO2 exceedence. | E22: Air flows reduced to work on slag extractor. | H22: Work completed
A23: 2023-07-05 | B23: Particulate exceedance | E23: Dust pocket on damper | H23: Damper cleared
A27: Summary of any complaints received and actions to taken to resolve them.
A28: Date | B28: Summary of complaint [including Line/Reference] | E28: Reason * | H28: Measures taken to prevent reoccurrence
E34: * including whether substantiated by the operator or the EA

Sheet Improvements
A1: =+'Cover Page'!$B$29 -> Annual Performance Report 2023 | E1: =+'Cover Page'!$B$33 -> Lakeside Energy From Waste Ltd
A3: Summary of Plant Improvements
A5: Summary of any efficiency improvements that have been completed within the year.
A6: Lights have continued to be replaced around the plant reducing site energy usage.
A16: Summary of any permit improvement conditions that have been completed within the year and the resulting environmental benefits.
A17: Lakeside completed the 3 improvement required by the consolidated permit. Mercury and dioxins underwent extended testing to prove Lakeside are consistently below the permitted limits. The NOx CFD modelling was used to justify an upgrade to the NOx abatement system.
A27: Summary of any changes to the plant or operating techniques which required a variation to the permit and a summary of the resulting environmental impact.
A28: Lakeside have added a clinical waste conveyor, to feed waste directly to the furnace hopper, bypassing the waste bunker. This allows Lakeside to incinerate low grade clinical waste code 18 01 03*. During the RPS issued, to allow EFW plants to incinerate clinical waste, it showed there was no significant impact to the emissions, which gave Lakeside the confidence to apply for a variation to be allowed to incinerate the waste.
A38: Summary of any other improvements made to the plant or planned to be made and a summary of the resulting environmental benefits.
A39: Lakeside undertook computerised fluid Dynamic (CFD) modelling to optimise the Nox control system. The report was commisioned by Babcock and Wilcox and determined that the ammonia was being injected at too high a temperature to give complete reduction of the NOx, with the potential that some of the ammonia was being incinerated and adding to the NOx problem. As aresult Lakeside are commisioning a new NOx control system, which will utilise urea and be optimised to inject the urea at the correct temperature to optimise the reaction and minimise the use of reagent.

Sheet Public Liasion
A1: =+'Cover Page'!$B$29 -> Annual Performance Report 2023 | E1: =+'Cover Page'!$B$33 -> Lakeside Energy From Waste Ltd
A3: Details of Public & Stakeholder Liasion
A5: Summary of events held during the reporting year.
A6: Date | C6: Description
A16: List of events planned for next year
A17: Date | C17: Description
A29: If you wish to be involved in the public liasion programme, please contact _martin.rogers@lakesideefw.co.uk_

Sheet CO2 N2O
A1: =+'Cover Page'!$B$29 -> Annual Performance Report 2023 | C1: =+'Cover Page'!$B$33 -> Lakeside Energy From Waste Ltd
A3: Carbon dioxide emissions and biogenic content of waste inputs | F3: Notes:
A5: Carbon dioxide emissions (all types of plant)
B6: Annual mass of carbon dioxide released | C6: tonnes | D6: 374137
B7: Annual mass of carbon dioxide released per tonne of waste burned | C7: t CO2 / t waste | D7: 0.906
B8: Annual mass of carbon dioxide released per MWh of energy exported | C8: t CO2 / MWh export | D8: 1.27
B9: Description of how annual carbon dioxide mass emission has been calculated. See Note 1 | C9: Mass emission calculated using calibrated CEMS figures. | F9: Note 1: Where available, data from CO2 CEMS should be used. Otherwise, only where no CEMS data is available, a suitable emissions factor should be used based on the tonnage of waste burned e.g.0.942 tCO2/t waste as per Tolvik report 2022, or other justified emissions factor - refer to embedded Environment Agency guidance note above or updated version for suitable descriptive text.
A10: Nitrous oxide emissions (only plants which use ammonia or urea to abate NOx emissions)
B11: Annual mass emissions of nitrous oxide | C11: tonnes N2O | D11: 2.162
B12: Description of how annual nitrous oxide mass emission has been calculated See Note 2 | C12: Mass emission calculated using calibrated CEMS figures. | F12: Note 2: Where available, data from N2O CEMS should be used. If no CEMS data is available, from periodic monitoring. Otherwise, a suitable emissions factor should be used based on the tonnage of waste burned e.g. 0.0981 kgN20/t waste as per 2021 Pollution Inventory data for plants with urea-based SNCR - refer to embedded Environment Agency guidance note above or updated version for suitable descriptive text.
A13: Total annual carbon dioxide and nitrous oxide emissions. See Note 3. | C13: tonnes CO2e | D13: 374733 | F13: Note 3: Total annual carbon dioxide and nitrous oxide emissions reported as carbon dioxide equivalent where 1 tonne nitrous oxide is equivalent to 298 tonne carbon dioxide
A14: Biogenic CO2 emissions (See Note 4) | F14: Note 4: Only plants combusting residual municipal waste, refuse derived fuel or solid recovered fuel
B15: Percentage of total carbon dioxide emissions arising from biogenic waste | C15: % | D15: 0.518
B16: No. of measurements undertaken | C16: Number
B17: Description of how percentage biogenic carbon dioxide emissions have been measured or calculated. See Note 5 | C17: 2017 WRAP figure used multiplying 51.8 % by measured CO2 produced = 194112 tonnes of biogenic CO2. | F17: Note 5: Examples include direct measurement via C14 method or BIOMA software - refer to embedded Environment Agency guidance note above or updated version for suitable descriptive text, quoting standards where relevant. Otherwise, as an approximation (and in lieu of any more accurate metrics which may be developed in future), the measured or estimated biogenic fraction by net calorific value can be assumed to be the same as the biogenic CO2 fraction of the total CO2 emissions from the plant.
A18: Biogenic fraction of waste feedstock (See Note 4)
B19: Yearly average biogenic percentage of the waste by net calorific value (NCV) | C19: %
B20: If sampling undertaken, no. of samples used to ascertain average biogenic % above | C20: Number
B21: Description of how biogenic percentage (by NCV) has been calculated or estimated. See Note 6 | F21: Note 6: Where available, data from waste sampling should be used; otherwise, an estimated figure with justification can be used, or a figure assumed on the basis of a national average e.g. 2017 WRAP data for residual waste of 51.8% biogenic energy content - refer to embedded Environment Agency guidance note above or updated version for suitable descriptive text, quoting standards where relevant.
B23: Comments:

Sheet Residue Quality
A1: =+'Cover Page'!$B$29 -> Annual Performance Report 2023 | E1: =+'Cover Page'!$B$33 -> Lakeside Energy From Waste Ltd
A3: Residue Quality Monitoring Requirements
A5: Summary of monitoring undertaken and compliance
A6: APC is sampled in January, April, July and September with a sample taken from each load going out, over the month.
A8: IBA is sampled according to the ESA protocol twice a month. The January, April, July and September samples are analysed against compliance with the permit. All 24 samples are tested for HP4 (irritant), HP7 (carcinogenic), HP8 (corrosive) and HP14 (ecotoxic). All samples for 2023 were non-hazardous.
A13: Commentary on any specific events
A14: Date & Event | C14: Description
A27: Residue Quality Monitoring Results
A28: Parameter (unit) | C28: Limit | D28: Normal Operation
D29: Bottom ash | F29: APC Residues
A30: Loss on Ignition (average %) | C30: <5%
A31: Total Organic Carbon (average %) | C31: <3% | D31: 0.58
A32: No. of Assessments Undertaken | C32: --- | D32: 24 | F32: 4
A33: No. of Hazardous Results | C33: --- | D33: 0
A35: Comments :

Sheet Water
A1: =+'Cover Page'!$B$29 -> Annual Performance Report 2023 | E1: =+'Cover Page'!$B$33 -> Lakeside Energy From Waste Ltd
A3: Emissions to Water
A5: Summary of monitoring undertaken and compliance
A6: All water generated on site is used in the process. 105 m3 of water was discharged to the fowl water sewer during the outage, when the boilers were emptied.
A13: Commentary on any specific events
A14: Date & Event | C14: Description
A22: Emissions to Water / Sewer
A23: Parameter | D23: Monitoring Frequency | F23: Limit | G23: Target | H23: Max. | I23: Average
A24: Suspended solids mg/l | D24: Composite | H24: 21 | I24: 9.5
A25: COD mg/l | D25: Composite | H25: 3 | I25: < 2.0
A26: Sulphide mg/l | D26: Composite | H26: <0.020 | I26: < 0.020
A27: Cyanide mg/l | D27: Composite | H27: < 0.009 | I27: < 0.009
A28: Ammonical Nitrogen mg/l | D28: Composite | H28: < 0.41 | I28: < 0.41
A29: Chromium mg/l | D29: Composite | H29: < 0.002 | I29: < 0.002
A30: Lead mg/l | D30: Composite | H30: < 0.006 | I30: < 0.006

Sheet Air (periodic)
A1: =+'Cover Page'!$B$29 -> Annual Performance Report 2023 | E1: =+'Cover Page'!$B$33 -> Lakeside Energy From Waste Ltd
A3: Emissions to Air (periodically monitored)
A5: Summary of monitoring undertaken, standards used and compliance | K5: Notes:
A6: Particulate BS EN 13284-1, Dioxans, furans, PCBs BS EN 1948-1, Metals BS EN 14385, Mercury BS EN 13211, Hydrogen Fluoride, CEN/TS 17340, Hydrogen Chloride BS EN 1911, VOC BS EN 12619, Nitrous Oxide CEN TS 17337, Oxides of nitrogen, BS EN 14792, Sulphur Dioxide CEN/TS 17021, Carbon monoxide BS EN 15058, Carbon dioxide CEN/TS 17405 | K6: Template may require adjustment for any bespoke monitoring requirements of permit - please also check that all default ELV values, reference periods and the stated oxygen reference value match those for your plant, and edit if necessary!
A9: Results of emissions to air that are periodically monitored - oxygen reference 6%
A10: Substance | C10: Ref. Period | D10: Emission Limit Value* | F10: Average | K10: User to add additional tables as necessary, depending on whether quarterly or bi-annual reporting is required for the compliance year
F11: A1 | G11: A2 | H11: A3 | I11: A4 | J11: A5
A12: Hydrogen fluoride | C12: 1 hr | D12: 2 mg/m3 | F12: 0.05 | G12: 0.03
A13: Cd and Th and their compounds | C13: 0.5-8hrs | D13: 0.05 mg/m3 | F13: 0.0008 | G13: 0.0008
A14: Hg and its compounds | C14: 0.5-8hrs | D14: 0.05 mg/m3 | F14: 0.0025 | G14: 0.0043 | K14: * Denotes limits that were in force until 2 December 2023; from 3 December 2023 the following new limits applied (those not listed remained unchanged):
A15: Sb, As, Pb, Cr, Co, Cu, Mn, Ni, V and their compounds | C15: 0.5-8hrs | D15: 0.5 mg/m3 | F15: 0.048 | G15: 0.066
A16: Dioxins & Furans (I-TEQ) | C16: 6-8hrs | D16: 0.1 ng/m3 | F16: 0.0021 | G16: 0.0107 | K16: Substance | L16: Reference Period | M16: Emission Limit Value
A17: PCBs (WHO-TEQ Humans / Mammals) | C17: 6-8hrs | D17: None set ng/m3 | F17: 0.0001 | G17: 0.0008
A18: PCBs (WHO-TEQ Fish) | C18: 6-8hrs | D18: None set ng/m3 | F18: 1e-05 | G18: 4e-05 | K18: Hydrogen fluoride | L18: Average of three consecutive measurements of at least 30 minutes each | M18: 1 mg/m3
A19: PCBs (WHO-TEQ Birds) | C19: 6-8hrs | D19: None set ng/m3 | F19: 0.0003 | G19: 0.0015 | K19: Cd and Th and their compounds | L19: Average of three consecutive measurements of at least 30 minutes each | M19: 0.02 mg/m3
A20: Dioxins & Furans (WHO-TEQ Humans / Mammals) | C20: 6-8hrs | D20: None set ng/m3 | F20: 0.002 | G20: 0.0092 | K20: Hg and its compounds | L20: Average of three consecutive measurements of at least 30 minutes each | M20: 0.02 mg/m3
A21: Dioxins & Furans (WHO-TEQ Fish) | C21: 6-8hrs | D21: None set ng/m3 | F21: 0.002 | G21: 0.0113 | K21: Sb, As, Pb, Cr, Co, Cu, Mn, Ni, V and their compounds | L21: Average of three consecutive measurements of at least 30 minutes each | M21: 0.3 mg/m3
A22: Dioxins & Furans (WHO-TEQ Birds) | C22: 6-8hrs | D22: None set ng/m3 | F22: 0.0029 | G22: 0.0207 | K22: Dioxins & Furans (I-TEQ) | L22: 6-8hrs | M22: 0.06 ng/m3
A23: Polybrominated dibenzo-dioxins and furans | C23: 6-8hrs | D23: None set ng/m3 | F23: 0.0005 | G23: 0.0009
A24: Anthanthrene | C24: 6-8hrs | D24: None set µg/m3 | F24: <.0012 | G24: <0.0013
A25: Benzo(a)anthracene | C25: 6-8hrs | D25: None set µg/m3 | F25: <.0012 | G25: <0.0013
A26: Benzo(a)pyrene | C26: 6-8hrs | D26: None set µg/m3 | F26: <.0012 | G26: <0.0013
A27: Benzo(b)fluoranthene | C27: 6-8hrs | D27: None set µg/m3 | F27: <.0012 | G27: <0.0013
A28: Benzo(b)naptho(2,1-d) thiophene | C28: 6-8hrs | D28: None set µg/m3 | F28: <.0012 | G28: <0.0013
A29: Benzo(c)phenanthrene | C29: 6-8hrs | D29: None set µg/m3 | F29: <.0012 | G29: <0.0013
A30: Benzo(ghi)perylene | C30: 6-8hrs | D30: None set µg/m3 | F30: <.0012 | G30: <0.0013
A31: Benzo(k)fluoranthene | C31: 6-8hrs | D31: None set µg/m3 | F31: <.0012 | G31: <0.0013
A32: Cholanthrene | C32: 6-8hrs | D32: None set µg/m3 | F32: <.0012 | G32: <0.0013
A33: Chrysene | C33: 6-8hrs | D33: None set µg/m3 | F33: <.0012 | G33: <0.0013
A34: Cyclopenta(cd)pyrene | C34: 6-8hrs | D34: None set µg/m3 | F34: <.0012 | G34: <0.0013
A35: Dibenzo(ai)pyrene | C35: 6-8hrs | D35: None set µg/m3 | F35: <.0012 | G35: <0.0013
A36: Dibenzo(ah)anthracene | C36: 6-8hrs | D36: None set µg/m3 | F36: <.0012 | G36: <0.0013
A37: Fluoranthene | C37: 6-8hrs | D37: None set µg/m3 | F37: <.0012 | G37: 0.03
A38: Indeno(123-cd) pyrene | C38: 6-8hrs | D38: None set µg/m3 | F38: <.0012 | G38: <0.0013
A39: Naphthalene | C39: 6-8hrs | D39: None set µg/m3 | F39: 0.27 | G39: 0.06
A40: Comments :

Sheet Air (CEMS)
A1: =+'Cover Page'!$B$29 -> Annual Performance Report 2023 | I1: =+'Cover Page'!$B$33 -> Lakeside Energy From Waste Ltd
A3: Emissions to Air (continously monitored)
N4: Notes:
A5: Summary of monitoring undertaken, standards used and compliance | N5: Template may require adjustment for any bespoke monitoring requirements of permit
N6: Please check that all default ELV values match those for your plant and edit if necessary!
N7: Report to 1 decimal place
A11: Results of emissions to air that are continuously monitored (maximum and average values for each line) - oxygen reference 11%
A12: Substance | B12: Reference Period | C12: Emission Limit Value** | D12: A1 | F12: A2 | H12: A3 | J12: A4 | L12: A5
D13: Max. | E13: Avg. | F13: Max. | G13: Avg. | H13: Max. | I13: Avg. | J13: Max. | K13: Avg. | L13: Max. | M13: Avg. | N13: ** Denotes limits that were in force until 2 December 2023; from 3 December 2023 the following new limits applied (those not listed remained unchanged):
A14: Oxides of nitrogen | B14: Daily mean | C14: 200 mg/m3 | D14: 181.75 | E14: 137.56 | F14: 187.2 | G14: 133.81
B15: ½ hourly mean | C15: 400 mg/m3 | D15: 266.87 | E15: 137.5 | F15: 284.36 | G15: 133.92 | N15: Substance | O15: Reference Period | P15: Emission Limit Value
A16: Particulates | B16: Daily mean | C16: 10 mg/m3 | D16: 6.82 | E16: 0.49 | F16: 5.93 | G16: 0.42
B17: ½ hourly mean | C17: 30 mg/m3 | D17: 84.7 | E17: 0.53 | F17: 8.73 | G17: 0.42 | N17: Oxides of nitrogen | O17: Daily mean | P17: 180 mg/m3
A18: Total Organic Carbon | B18: Daily mean | C18: 10 mg/m3 | D18: 0.69 | E18: 0.28 | F18: 1 | G18: 0.4 | N18: Particulates | O18: Daily mean | P18: 5 mg/m3
B19: ½ hourly mean | C19: 20 mg/m3 | D19: 9.14 | E19: 0.28 | F19: 5.63 | G19: 0.4 | N19: Hydrogen chloride | O19: Daily mean | P19: 8 mg/m3
A20: Hydrogen chloride | B20: Daily mean | C20: 10 mg/m3 | D20: 6.52 | E20: 3.54 | F20: 7.5 | G20: 4.05 | N20: Sulphur dioxide | O20: Daily mean | P20: 40 mg/m3
B21: ½ hourly mean | C21: 60 mg/m3 | D21: 28.2 | E21: 4.06 | F21: 28.2 | G21: 4.06 | N21: Ammonia | O21: Daily mean | P21: 15 mg/m3
A22: Sulphur dioxide | B22: Daily mean | C22: 50 mg/m3 | D22: 32.52 | E22: 4.84 | F22: 12.07 | G22: 6.1
B23: ½ hourly mean | C23: 200 mg/m3 | D23: 737.29 | E23: 4.85 | F23: 93.68 | G23: 6.1
A24: Carbon monoxide | B24: Daily mean | C24: 50 mg/m3 | D24: 19.89 | E24: 6.65 | F24: 19.24 | G24: 5.01
B25: 95%ile 10-min avg * | C25: 150 mg/m3 * | D25: 47.46 | E25: 6.71 | F25: 51.02 | G25: 4.99
A26: Ammonia | B26: Daily mean | C26: No limit set until 03/12/23 | D26: 0.32 | E26: -0.05 | F26: 0.47 | G26: 0.13
A27: ** = delete as appropriate, depending on whether your plant has half-horly or 10-min CO ELVs
A28: Comments :

Sheet HCl
A1: =+'Cover Page'!$B$29 -> Annual Performance Report 2023 | E1: =+'Cover Page'!$B$33 -> Lakeside Energy From Waste Ltd
A3: Monitoring of Hydrogen Chloride emissions | D3: Whole Installation | G3: See Notes in Cell Q3 | J3: =+A3 -> Monitoring of Hydrogen Chloride emissions | N3: Per Combustion Line | Q3: Notes:
Q4: User to add logic to complete Whole installation, Table A5:G18. From the data in Per Combustion Line, Table J6:O79, subject to No. of lines installed
A5: mg/Nm3 | B5: 1/2 Hourly Reference Periods | E5: Daily Reference Periods
A6: =+'Cover Page'!C39 -> 2023 | B6: 1/2 hourly HCl ELV | C6: Monthly 1/2 hourly mean | D6: Highest 1/2 hourly maximum | E6: Daily HCl ELV* | F6: Monthly daily mean | G6: Highest daily maximum | J6: =+A6 -> 2023 | K6: mg/Nm3 | L6: Monthly 1/2 hourly mean | M6: Monthly 1/2 hourly maximum | N6: Monthly daily mean | O6: Monthly daily maximum
A7: Jan | B7: 60 | C7: =(L7+L22)/2 -> 3.245 | D7: =(M7+M22)/2 -> 8.955 | E7: 10 | F7: =(N7+N22)/2 -> 3.245 | G7: =(O7+O22)/2 -> 3.76 | J7: A1 | K7: Jan | L7: 2.95 | M7: 10.46 | N7: 2.95 | O7: 3.71
A8: Feb | B8: 60 | C8: =(L8+L23)/2 -> 3.085 | D8: =(M8+M23)/2 -> 9.13 | E8: 10 | F8: =(N8+N23)/2 -> 3.085 | G8: =(O8+O23)/2 -> 3.53 | K8: Feb | L8: 2.51 | M8: 5.55 | N8: 2.51 | O8: 2.89
A9: Mar | B9: 60 | C9: 3.89 | D9: 17.72 | E9: 10 | F9: 3.875 | G9: 4.9 | K9: Mar | L9: 3.35 | M9: 7.24 | N9: 3.35 | O9: 4.55 | Q9: Whole Installation table A5:G18:
A10: Apr | B10: 60 | C10: 3.345 | D10: 15.09 | E10: 10 | F10: 3.305 | G10: 3.7 | K10: Apr | L10: 3.22 | M10: 7.19 | N10: 3.22 | O10: 3.63 | Q10: Mean: for 1/2 hourly and daily periods calculate mean of values across all operational combustion lines for the month
A11: May | B11: 60 | C11: 2.825 | D11: 5.84 | E11: 10 | F11: 2.81 | G11: 3.505 | K11: May | L11: 2.4 | M11: 6.61 | N11: 2.37 | O11: 3.2
A12: Jun | B12: 60 | C12: 3.62 | D12: 15.63 | E12: 10 | F12: 3.61 | G12: 4.68 | K12: Jun | L12: 3.21 | M12: 13.82 | N12: 3.21 | O12: 4.24
A13: Jul | B13: 60 | C13: 3.63 | D13: 16.835 | E13: 10 | F13: 3.63 | G13: 4.82 | K13: Jul | L13: 3.32 | M13: 25.71 | N13: 3.32 | O13: 4.83 | Q13: Maximum: for 1/2 hourly and daily periods use the highest value across all operational combustion lines for the month
A14: Aug | B14: 60 | C14: 3.945 | D14: 11.78 | E14: 10 | F14: 3.945 | G14: 4.75 | K14: Aug | L14: 3.89 | M14: 11.68 | N14: 3.89 | O14: 4.85
A15: Sep | B15: 60 | C15: 4.44 | D15: 9.58 | E15: 10 | F15: 4.455 | G15: 5.49 | K15: Sep | L15: 4.69 | M15: 12.34 | N15: 4.72 | O15: 5.63
A16: Oct | B16: 60 | C16: 3.74 | D16: 6.555 | E16: 10 | F16: 3.74 | G16: 5.515 | K16: Oct | L16: 3.44 | M16: 7.29 | N16: 3.44 | O16: 6.19
A17: Nov | B17: 60 | C17: 4.62 | D17: 11.835 | E17: 10 | F17: 4.61 | G17: 6.775 | K17: Nov | L17: 4.36 | M17: 15.78 | N17: 4.36 | O17: 6.05
A18: Dec | B18: 60 | C18: 5.255 | D18: 17.645 | E18: 10 | F18: 5.235 | G18: 6.925 | K18: Dec | L18: 5.19 | M18: 18.76 | N18: 5.19 | O18: 6.52
E19: * ELV reduced to 8 mg/Nm3 on 3 December 2023 | K19: Annual | L19: =AVERAGE(L7:L18) -> 3.544166667 | M19: =MAX(M7:M18) -> 25.71 | N19: =AVERAGE(N7:N18) -> 3.544166667 | O19: =MAX(O7:O18) -> 6.52
J21: =+A6 -> 2023 | K21: mg/Nm3 | L21: Monthly 1/2 hourly mean | M21: Monthly 1/2 hourly maximum | N21: Monthly daily mean | O21: Monthly daily maximum
J22: A2 | K22: Jan | L22: 3.54 | M22: 7.45 | N22: 3.54 | O22: 3.81
K23: Feb | L23: 3.66 | M23: 12.71 | N23: 3.66 | O23: 4.17
K24: Mar | L24: 4.43 | M24: 28.2 | N24: 4.4 | O24: 5.25
K25: Apr | L25: 3.47 | M25: 22.99 | N25: 3.39 | O25: 3.77
K26: May | L26: 3.25 | M26: 5.07 | N26: 3.25 | O26: 3.81
K27: Jun | L27: 4.03 | M27: 17.44 | N27: 4.01 | O27: 5.12
K28: Jul | L28: 3.94 | M28: 7.96 | N28: 3.94 | O28: 4.81
K29: Aug | L29: 4 | M29: 11.88 | N29: 4 | O29: 4.65
K30: Sep | L30: 4.19 | M30: 6.82 | N30: 4.19 | O30: 5.35
K31: Oct | L31: 4.04 | M31: 5.82 | N31: 4.04 | O31: 4.84
K32: Nov | L32: 4.88 | M32: 7.89 | N32: 4.86 | O32: 7.5
K33: Dec | L33: 5.32 | M33: 16.53 | N33: 5.28 | O33: 7.33
K34: Annual | L34: =AVERAGE(L22:L33) -> 4.0625 | M34: =MAX(M22:M33) -> 28.2 | N34: =AVERAGE(N22:N33) -> 4.046666667 | O34: =MAX(O22:O33) -> 7.5
J36: =+A6 -> 2023 | K36: mg/Nm3 | L36: Monthly 1/2 hourly mean | M36: Monthly 1/2 hourly maximum | N36: Monthly daily mean | O36: Monthly daily maximum
J37: A3 | K37: Jan
K38: Feb
K39: Mar
K40: Apr
K41: May
K42: Jun
K43: Jul
K44: Aug
K45: Sep
K46: Oct
K47: Nov
A48: Comments : | K48: Dec
K49: Annual | L49: =AVERAGE(L37:L48) ->  | M49: =MAX(M37:M48) -> 0 | N49: =AVERAGE(N37:N48) ->  | O49: =MAX(O37:O48) -> 0
J51: =+A6 -> 2023 | K51: mg/Nm3 | L51: Monthly 1/2 hourly mean | M51: Monthly 1/2 hourly maximum | N51: Monthly daily mean | O51: Monthly daily maximum
J52: A4 | K52: Jan
K53: Feb
K54: Mar
K55: Apr
K56: May
K57: Jun
K58: Jul
K59: Aug
K60: Sep
K61: Oct
K62: Nov
K63: Dec
K64: Annual | L64: =AVERAGE(L52:L63) ->  | M64: =MAX(M52:M63) -> 0 | N64: =AVERAGE(N52:N63) ->  | O64: =MAX(O52:O63) -> 0
J66: =+A6 -> 2023 | K66: mg/Nm3 | L66: Monthly 1/2 hourly mean | M66: Monthly 1/2 hourly maximum | N66: Monthly daily mean | O66: Monthly daily maximum
J67: A5 | K67: Jan
K68: Feb
K69: Mar
K70: Apr
K71: May
K72: Jun
K73: Jul
K74: Aug
K75: Sep
K76: Oct
K77: Nov
K78: Dec
K79: Annual | L79: =AVERAGE(L67:L78) ->  | M79: =MAX(M67:M78) -> 0 | N79: =AVERAGE(N67:N78) ->  | O79: =MAX(O67:O78) -> 0

Sheet SO2
A1: =+'Cover Page'!$B$29 -> Annual Performance Report 2023 | E1: =+'Cover Page'!$B$33 -> Lakeside Energy From Waste Ltd
A3: Monitoring of Sulphur dioxide emissions | D3: Whole Installation | G3: See Notes in Cell Q3 | J3: =+A3 -> Monitoring of Sulphur dioxide emissions | N3: Per Combustion Line | Q3: Notes:
Q4: User to add logic to complete Whole installation, Table A5:G18. From the data in Per Combustion Line, Table J6:O79, subject to No. of lines installed
A5: mg/Nm3 | B5: 1/2 Hourly Reference Periods | E5: Daily Reference Periods
A6: =+'Cover Page'!C39 -> 2023 | B6: 1/2 hourly SO2 ELV | C6: Monthly 1/2 hourly mean | D6: Highest 1/2 hourly maximum | E6: Daily SO2 ELV* | F6: Monthly daily mean | G6: Highest daily maximum | J6: =+A6 -> 2023 | K6: mg/Nm3 | L6: Monthly 1/2 hourly mean | M6: Monthly 1/2 hourly maximum | N6: Monthly daily mean | O6: Monthly daily maximum
A7: Jan | B7: 200 | C7: =(L7+L22)/2 -> 6.47 | D7: =(M7+M22)/2 -> 18.015 | E7: 50 | F7: =(N7+N22)/2 -> 6.47 | G7: =(O7+O22)/2 -> 8.855 | J7: A1 | K7: Jan | L7: 5.62 | M7: 9.01 | N7: 5.62 | O7: 7.68
A8: Feb | B8: 200 | C8: =(L8+L23)/2 -> 5.675 | D8: =(M8+M23)/2 -> 16.785 | E8: 50 | F8: =(N8+N23)/2 -> 5.675 | G8: =(O8+O23)/2 -> 7.28 | K8: Feb | L8: 4.87 | M8: 16.68 | N8: 4.87 | O8: 6.64
A9: Mar | B9: 200 | C9: 5.345 | D9: 11.465 | E9: 50 | F9: 5.33 | G9: 6.385 | K9: Mar | L9: 4.2 | M9: 11.76 | N9: 4.17 | O9: 5.05 | Q9: Whole Installation table A5:G18:
A10: Apr | B10: 200 | C10: 6.18 | D10: 13.57 | E10: 50 | F10: 6.155 | G10: 8.04 | K10: Apr | L10: 5.15 | M10: 14.35 | N10: 5.1 | O10: 6.73 | Q10: Mean: for 1/2 hourly and daily periods calculate mean of values across all operational combustion lines for the month
A11: May | B11: 200 | C11: 5.955 | D11: 52.095 | E11: 50 | F11: 5.965 | G11: 9.085 | K11: May | L11: 4.68 | M11: 10.51 | N11: 4.68 | O11: 6.1
A12: Jun | B12: 200 | C12: 5.45 | D12: 386.58 | E12: 50 | F12: 5.42 | G12: 19.545 | K12: Jun | L12: 5.18 | M12: 737.29 | N12: 5.12 | O12: 32.52
A13: Jul | B13: 200 | C13: 5.025 | D13: 37.145 | E13: 50 | F13: 5.025 | G13: 7.565 | K13: Jul | L13: 4.51 | M13: 37.34 | N13: 4.51 | O13: 7.82 | Q13: Maximum: for 1/2 hourly and daily periods use the highest value across all operational combustion lines for the month
A14: Aug | B14: 200 | C14: 4.995 | D14: 41.41 | E14: 50 | F14: 4.995 | G14: 5.895 | K14: Aug | L14: 4.76 | M14: 68.89 | N14: 4.76 | O14: 5.92
A15: Sep | B15: 200 | C15: 4.77 | D15: 13.565 | E15: 50 | F15: 4.745 | G15: 5.96 | K15: Sep | L15: 4.28 | M15: 14.81 | N15: 4.28 | O15: 5.1
A16: Oct | B16: 200 | C16: 5.14 | D16: 12.275 | E16: 50 | F16: 5.14 | G16: 6.49 | K16: Oct | L16: 4.89 | M16: 9.8 | N16: 4.89 | O16: 5.86
A17: Nov | B17: 200 | C17: 5.57 | D17: 22.36 | E17: 50 | F17: 5.565 | G17: 6.66 | K17: Nov | L17: 5.09 | M17: 9.19 | N17: 5.08 | O17: 6.28
A18: Dec | B18: 200 | C18: 5.145 | D18: 24.63 | E18: 50 | F18: 5.13 | G18: 7.32 | K18: Dec | L18: 5.01 | M18: 14.27 | N18: 4.98 | O18: 6.7
E19: * ELV reduced to 40 mg/Nm3 on 3 December 2023 | K19: Annual | L19: =AVERAGE(L7:L18) -> 4.853333333 | M19: =MAX(M7:M18) -> 737.29 | N19: =AVERAGE(N7:N18) -> 4.838333333 | O19: =MAX(O7:O18) -> 32.52
J21: =+A6 -> 2023 | K21: mg/Nm3 | L21: Monthly 1/2 hourly mean | M21: Monthly 1/2 hourly maximum | N21: Monthly daily mean | O21: Monthly daily maximum
J22: A2 | K22: Jan | L22: 7.32 | M22: 27.02 | N22: 7.32 | O22: 10.03
K23: Feb | L23: 6.48 | M23: 16.89 | N23: 6.48 | O23: 7.92
K24: Mar | L24: 6.49 | M24: 11.17 | N24: 6.49 | O24: 7.72
K25: Apr | L25: 7.21 | M25: 12.79 | N25: 7.21 | O25: 9.35
K26: May | L26: 7.23 | M26: 93.68 | N26: 7.25 | O26: 12.07
K27: Jun | L27: 5.72 | M27: 35.87 | N27: 5.72 | O27: 6.57
K28: Jul | L28: 5.54 | M28: 36.95 | N28: 5.54 | O28: 7.31
K29: Aug | L29: 5.23 | M29: 13.93 | N29: 5.23 | O29: 5.87
K30: Sep | L30: 5.26 | M30: 12.32 | N30: 5.21 | O30: 6.82
K31: Oct | L31: 5.39 | M31: 14.75 | N31: 5.39 | O31: 7.12
K32: Nov | L32: 6.05 | M32: 35.53 | N32: 6.05 | O32: 7.04
K33: Dec | L33: 5.28 | M33: 34.99 | N33: 5.28 | O33: 7.94
K34: Annual | L34: =AVERAGE(L22:L33) -> 6.1 | M34: =MAX(M22:M33) -> 93.68 | N34: =AVERAGE(N22:N33) -> 6.0975 | O34: =MAX(O22:O33) -> 12.07
J36: =+A6 -> 2023 | K36: mg/Nm3 | L36: Monthly 1/2 hourly mean | M36: Monthly 1/2 hourly maximum | N36: Monthly daily mean | O36: Monthly daily maximum
J37: A3 | K37: Jan
K38: Feb
K39: Mar
K40: Apr
K41: May
K42: Jun
K43: Jul
K44: Aug
K45: Sep
K46: Oct
K47: Nov
A48: Comments : | K48: Dec
K49: Annual | L49: =AVERAGE(L37:L48) ->  | M49: =MAX(M37:M48) -> 0 | N49: =AVERAGE(N37:N48) ->  | O49: =MAX(O37:O48) -> 0
J51: =+A6 -> 2023 | K51: mg/Nm3 | L51: Monthly 1/2 hourly mean | M51: Monthly 1/2 hourly maximum | N51: Monthly daily mean | O51: Monthly daily maximum
J52: A4 | K52: Jan
K53: Feb
K54: Mar
K55: Apr
K56: May
K57: Jun
K58: Jul
K59: Aug
K60: Sep
K61: Oct
K62: Nov
K63: Dec
K64: Annual | L64: =AVERAGE(L52:L63) ->  | M64: =MAX(M52:M63) -> 0 | N64: =AVERAGE(N52:N63) ->  | O64: =MAX(O52:O63) -> 0
J66: =+A6 -> 2023 | K66: mg/Nm3 | L66: Monthly 1/2 hourly mean | M66: Monthly 1/2 hourly maximum | N66: Monthly daily mean | O66: Monthly daily maximum
J67: A5 | K67: Jan
K68: Feb
K69: Mar
K70: Apr
K71: May
K72: Jun
K73: Jul
K74: Aug
K75: Sep
K76: Oct
K77: Nov
K78: Dec
K79: Annual | L79: =AVERAGE(L67:L78) ->  | M79: =MAX(M67:M78) -> 0 | N79: =AVERAGE(N67:N78) ->  | O79: =MAX(O67:O78) -> 0

Sheet NOx
A1: =+'Cover Page'!$B$29 -> Annual Performance Report 2023 | E1: =+'Cover Page'!$B$33 -> Lakeside Energy From Waste Ltd
A3: Monitoring of Oxides of Nitrogen emissions | D3: Whole Installation | G3: See Notes in Cell Q3 | J3: =+A3 -> Monitoring of Oxides of Nitrogen emissions | N3: Per Combustion Line | Q3: Notes:
Q4: User to add logic to complete Whole installation, Table A5:G18. From the data in Per Combustion Line, Table J6:O79, subject to No. of lines installed
A5: mg/Nm3 | B5: 1/2 Hourly Reference Periods | E5: Daily Reference Periods
A6: =+'Cover Page'!C39 -> 2023 | B6: 1/2 hourly NOx ELV | C6: Monthly 1/2 hourly mean | D6: Highest 1/2 hourly maximum | E6: Daily NOx ELV* | F6: Monthly daily mean | G6: Highest daily maximum | J6: =+A6 -> 2023 | K6: mg/Nm3 | L6: Monthly 1/2 hourly mean | M6: Monthly 1/2 hourly maximum | N6: Monthly daily mean | O6: Monthly daily maximum
A7: Jan | B7: 400 | C7: =(L7+L22)/2 -> 155.54 | D7: =(M7+M22)/2 -> 253.81 | E7: 200 | F7: =(N7+N22)/2 -> 155.545 | G7: =(O7+O22)/2 -> 167.68 | J7: A1 | K7: Jan | L7: 162.24 | M7: 232.61 | N7: 162.24 | O7: 171.95
A8: Feb | B8: 400 | C8: =(L8+L23)/2 -> 157.36 | D8: =(M8+M23)/2 -> 252.94 | E8: 200 | F8: =(N8+N23)/2 -> 157.365 | G8: =(O8+O23)/2 -> 171.745 | K8: Feb | L8: 160.93 | M8: 221.52 | N8: 160.94 | O8: 173.17
A9: Mar | B9: 400 | C9: 149.18 | D9: 199.735 | E9: 200 | F9: 149.12 | G9: 160 | K9: Mar | L9: 159.2 | M9: 206.82 | N9: 159.07 | O9: 167 | Q9: Whole Installation table A5:G18:
A10: Apr | B10: 400 | C10: 160.92 | D10: 246.845 | E10: 200 | F10: 161.53 | G10: 177.93 | K10: Apr | L10: 159.25 | M10: 217.51 | N10: 160.4 | O10: 168.64 | Q10: Mean: for 1/2 hourly and daily periods calculate mean of values across all operational combustion lines for the month
A11: May | B11: 400 | C11: 154.405 | D11: 253.575 | E11: 200 | F11: 154.15 | G11: 180.65 | K11: May | L11: 156.77 | M11: 266.87 | N11: 156.79 | O11: 181.75
A12: Jun | B12: 400 | C12: 133.625 | D12: 187.31 | E12: 200 | F12: 133.66 | G12: 160.14 | K12: Jun | L12: 131.86 | M12: 175.12 | N12: 131.93 | O12: 155.48
A13: Jul | B13: 400 | C13: 125.345 | D13: 201.765 | E13: 200 | F13: 125.345 | G13: 140.825 | K13: Jul | L13: 121.68 | M13: 210.01 | N13: 121.68 | O13: 135.08 | Q13: Maximum: for 1/2 hourly and daily periods use the highest value across all operational combustion lines for the month
A14: Aug | B14: 400 | C14: 124.845 | D14: 182.54 | E14: 200 | F14: 124.845 | G14: 136.395 | K14: Aug | L14: 125.07 | M14: 165.25 | N14: 125.07 | O14: 138.77
A15: Sep | B15: 400 | C15: 121.905 | D15: 174.95 | E15: 200 | F15: 121.485 | G15: 139.195 | K15: Sep | L15: 125.36 | M15: 162.42 | N15: 125.36 | O15: 139.87
A16: Oct | B16: 400 | C16: 115.975 | D16: 222.155 | E16: 200 | F16: 115.995 | G16: 128.36 | K16: Oct | L16: 115.38 | M16: 218.71 | N16: 115.4 | O16: 124.78
A17: Nov | B17: 400 | C17: 116.05 | D17: 177.895 | E17: 200 | F17: 116.015 | G17: 134.355 | K17: Nov | L17: 113.08 | M17: 159.11 | N17: 113.01 | O17: 128.3
A18: Dec | B18: 400 | C18: 113.375 | D18: 205.145 | E18: 200 | F18: 113.21 | G18: 121.93 | K18: Dec | L18: 119.21 | M18: 252.86 | N18: 118.88 | O18: 128.04
E19: * ELV reduced to 180 mg/Nm3 on 3 December 2023 | K19: Annual | L19: =AVERAGE(L7:L18) -> 137.5025 | M19: =MAX(M7:M18) -> 266.87 | N19: =AVERAGE(N7:N18) -> 137.5641667 | O19: =MAX(O7:O18) -> 181.75
J21: =+A6 -> 2023 | K21: mg/Nm3 | L21: Monthly 1/2 hourly mean | M21: Monthly 1/2 hourly maximum | N21: Monthly daily mean | O21: Monthly daily maximum
J22: A2 | K22: Jan | L22: 148.84 | M22: 275.01 | N22: 148.85 | O22: 163.41
K23: Feb | L23: 153.79 | M23: 284.36 | N23: 153.79 | O23: 170.32
K24: Mar | L24: 139.16 | M24: 192.65 | N24: 139.17 | O24: 153
K25: Apr | L25: 162.59 | M25: 276.18 | N25: 162.66 | O25: 187.22
K26: May | L26: 152.04 | M26: 240.28 | N26: 151.51 | O26: 179.55
K27: Jun | L27: 135.39 | M27: 199.5 | N27: 135.39 | O27: 164.8
K28: Jul | L28: 129.01 | M28: 193.52 | N28: 129.01 | O28: 146.57
K29: Aug | L29: 124.62 | M29: 199.83 | N29: 124.62 | O29: 134.02
K30: Sep | L30: 118.45 | M30: 187.48 | N30: 117.61 | O30: 138.52
K31: Oct | L31: 116.57 | M31: 225.6 | N31: 116.59 | O31: 131.94
K32: Nov | L32: 119.02 | M32: 196.68 | N32: 119.02 | O32: 140.41
K33: Dec | L33: 107.54 | M33: 157.43 | N33: 107.54 | O33: 115.82
K34: Annual | L34: =AVERAGE(L22:L33) -> 133.9183333 | M34: =MAX(M22:M33) -> 284.36 | N34: =AVERAGE(N22:N33) -> 133.8133333 | O34: =MAX(O22:O33) -> 187.22
J36: =+A6 -> 2023 | K36: mg/Nm3 | L36: Monthly 1/2 hourly mean | M36: Monthly 1/2 hourly maximum | N36: Monthly daily mean | O36: Monthly daily maximum
J37: A3 | K37: Jan
K38: Feb
K39: Mar
K40: Apr
K41: May
K42: Jun
K43: Jul
K44: Aug
K45: Sep
K46: Oct
K47: Nov
A48: Comments : | K48: Dec
K49: Annual | L49: =AVERAGE(L37:L48) ->  | M49: =MAX(M37:M48) -> 0 | N49: =AVERAGE(N37:N48) ->  | O49: =MAX(O37:O48) -> 0
J51: =+A6 -> 2023 | K51: mg/Nm3 | L51: Monthly 1/2 hourly mean | M51: Monthly 1/2 hourly maximum | N51: Monthly daily mean | O51: Monthly daily maximum
J52: A4 | K52: Jan
K53: Feb
K54: Mar
K55: Apr
K56: May
K57: Jun
K58: Jul
K59: Aug
K60: Sep
K61: Oct
K62: Nov
K63: Dec
K64: Annual | L64: =AVERAGE(L52:L63) ->  | M64: =MAX(M52:M63) -> 0 | N64: =AVERAGE(N52:N63) ->  | O64: =MAX(O52:O63) -> 0
J66: =+A6 -> 2023 | K66: mg/Nm3 | L66: Monthly 1/2 hourly mean | M66: Monthly 1/2 hourly maximum | N66: Monthly daily mean | O66: Monthly daily maximum
J67: A5 | K67: Jan
K68: Feb
K69: Mar
K70: Apr
K71: May
K72: Jun
K73: Jul
K74: Aug
K75: Sep
K76: Oct
K77: Nov
K78: Dec
K79: Annual | L79: =AVERAGE(L67:L78) ->  | M79: =MAX(M67:M78) -> 0 | N79: =AVERAGE(N67:N78) ->  | O79: =MAX(O67:O78) -> 0

Sheet TOC
A1: =+'Cover Page'!$B$29 -> Annual Performance Report 2023 | E1: =+'Cover Page'!$B$33 -> Lakeside Energy From Waste Ltd
A3: Monitoring of Total organic carbon emissions | D3: Whole Installation | G3: See Notes in Cell Q3 | J3: =+A3 -> Monitoring of Total organic carbon emissions | N3: Per Combustion Line | Q3: Notes:
Q4: User to add logic to complete Whole installation, Table A5:G18. From the data in Per Combustion Line, Table J6:O79, subject to No. of lines installed
A5: mg/Nm3 | B5: 1/2 Hourly Reference Periods | E5: Daily Reference Periods
A6: =+'Cover Page'!C39 -> 2023 | B6: 1/2 hourly TOC ELV | C6: Monthly 1/2 hourly mean | D6: Highest 1/2 hourly maximum | E6: Daily TOC ELV | F6: Monthly daily mean | G6: Highest daily maximum | J6: =+A6 -> 2023 | K6: mg/Nm3 | L6: Monthly 1/2 hourly mean | M6: Monthly 1/2 hourly maximum | N6: Monthly daily mean | O6: Monthly daily maximum
A7: Jan | B7: 20 | C7: =(L7+L22)/2 -> 0.165 | D7: =(M7+M22)/2 -> 4.17 | E7: 10 | F7: =(N7+N22)/2 -> 0.165 | G7: =(O7+O22)/2 -> 0.31 | J7: A1 | K7: Jan | L7: 0.08 | M7: 3.65 | N7: 0.08 | O7: 0.17
A8: Feb | B8: 20 | C8: =(L8+L23)/2 -> 0.305 | D8: =(M8+M23)/2 -> 4.455 | E8: 10 | F8: =(N8+N23)/2 -> 0.305 | G8: =(O8+O23)/2 -> 0.585 | K8: Feb | L8: 0.13 | M8: 4.73 | N8: 0.13 | O8: 0.48
A9: Mar | B9: 20 | C9: 0.38 | D9: 4.755 | E9: 10 | F9: 0.385 | G9: 0.58 | K9: Mar | L9: 0.28 | M9: 3.88 | N9: 0.29 | O9: 0.42 | Q9: Whole Installation table A5:G18:
A10: Apr | B10: 20 | C10: 0.09 | D10: 3.705 | E10: 10 | F10: 0.125 | G10: 0.265 | K10: Apr | L10: -0.05 | M10: 2.29 | N10: 0.02 | O10: 0.14 | Q10: Mean: for 1/2 hourly and daily periods calculate mean of values across all operational combustion lines for the month
A11: May | B11: 20 | C11: 0.39 | D11: 2.795 | E11: 10 | F11: 0.395 | G11: 0.615 | K11: May | L11: 0.29 | M11: 4.07 | N11: 0.29 | O11: 0.47
A12: Jun | B12: 20 | C12: 0.42 | D12: 6.95 | E12: 10 | F12: 0.405 | G12: 0.59 | K12: Jun | L12: 0.36 | M12: 9.14 | N12: 0.33 | O12: 0.5
A13: Jul | B13: 20 | C13: 0.425 | D13: 4.13 | E13: 10 | F13: 0.425 | G13: 0.555 | K13: Jul | L13: 0.36 | M13: 3.99 | N13: 0.36 | O13: 0.49 | Q13: Maximum: for 1/2 hourly and daily periods use the highest value across all operational combustion lines for the month
A14: Aug | B14: 20 | C14: 0.455 | D14: 5.775 | E14: 10 | F14: 0.455 | G14: 0.64 | K14: Aug | L14: 0.4 | M14: 7.26 | N14: 0.4 | O14: 0.62
A15: Sep | B15: 20 | C15: 0.47 | D15: 4.525 | E15: 10 | F15: 0.47 | G15: 0.845 | K15: Sep | L15: 0.39 | M15: 4.96 | N15: 0.39 | O15: 0.69
A16: Oct | B16: 20 | C16: 0.44 | D16: 4.36 | E16: 10 | F16: 0.435 | G16: 0.585 | K16: Oct | L16: 0.39 | M16: 3.8 | N16: 0.38 | O16: 0.51
A17: Nov | B17: 20 | C17: 0.285 | D17: 4.06 | E17: 10 | F17: 0.285 | G17: 0.405 | K17: Nov | L17: 0.38 | M17: 4.81 | N17: 0.38 | O17: 0.49
A18: Dec | B18: 20 | C18: 0.245 | D18: 2.945 | E18: 10 | F18: 0.245 | G18: 0.375 | K18: Dec | L18: 0.29 | M18: 3.25 | N18: 0.29 | O18: 0.44
K19: Annual | L19: =AVERAGE(L7:L18) -> 0.275 | M19: =MAX(M7:M18) -> 9.14 | N19: =AVERAGE(N7:N18) -> 0.2783333333 | O19: =MAX(O7:O18) -> 0.69
J21: =+A6 -> 2023 | K21: mg/Nm3 | L21: Monthly 1/2 hourly mean | M21: Monthly 1/2 hourly maximum | N21: Monthly daily mean | O21: Monthly daily maximum
J22: A2 | K22: Jan | L22: 0.25 | M22: 4.69 | N22: 0.25 | O22: 0.45
K23: Feb | L23: 0.48 | M23: 4.18 | N23: 0.48 | O23: 0.69
K24: Mar | L24: 0.48 | M24: 5.63 | N24: 0.48 | O24: 0.74
K25: Apr | L25: 0.23 | M25: 5.12 | N25: 0.23 | O25: 0.39
K26: May | L26: 0.49 | M26: 1.52 | N26: 0.5 | O26: 0.76
K27: Jun | L27: 0.48 | M27: 4.76 | N27: 0.48 | O27: 0.68
K28: Jul | L28: 0.49 | M28: 4.27 | N28: 0.49 | O28: 0.62
K29: Aug | L29: 0.51 | M29: 4.29 | N29: 0.51 | O29: 0.66
K30: Sep | L30: 0.55 | M30: 4.09 | N30: 0.55 | O30: 1
K31: Oct | L31: 0.49 | M31: 4.92 | N31: 0.49 | O31: 0.66
K32: Nov | L32: 0.19 | M32: 3.31 | N32: 0.19 | O32: 0.32
K33: Dec | L33: 0.2 | M33: 2.64 | N33: 0.2 | O33: 0.31
K34: Annual | L34: =AVERAGE(L22:L33) -> 0.4033333333 | M34: =MAX(M22:M33) -> 5.63 | N34: =AVERAGE(N22:N33) -> 0.4041666667 | O34: =MAX(O22:O33) -> 1
J36: =+A6 -> 2023 | K36: mg/Nm3 | L36: Monthly 1/2 hourly mean | M36: Monthly 1/2 hourly maximum | N36: Monthly daily mean | O36: Monthly daily maximum
J37: A3 | K37: Jan
K38: Feb
K39: Mar
K40: Apr
K41: May
K42: Jun
K43: Jul
K44: Aug
K45: Sep
K46: Oct
K47: Nov
A48: Comments : | K48: Dec
K49: Annual | L49: =AVERAGE(L37:L48) ->  | M49: =MAX(M37:M48) -> 0 | N49: =AVERAGE(N37:N48) ->  | O49: =MAX(O37:O48) -> 0
J51: =+A6 -> 2023 | K51: mg/Nm3 | L51: Monthly 1/2 hourly mean | M51: Monthly 1/2 hourly maximum | N51: Monthly daily mean | O51: Monthly daily maximum
J52: A4 | K52: Jan
K53: Feb
K54: Mar
K55: Apr
K56: May
K57: Jun
K58: Jul
K59: Aug
K60: Sep
K61: Oct
K62: Nov
K63: Dec
K64: Annual | L64: =AVERAGE(L52:L63) ->  | M64: =MAX(M52:M63) -> 0 | N64: =AVERAGE(N52:N63) ->  | O64: =MAX(O52:O63) -> 0
J66: =+A6 -> 2023 | K66: mg/Nm3 | L66: Monthly 1/2 hourly mean | M66: Monthly 1/2 hourly maximum | N66: Monthly daily mean | O66: Monthly daily maximum
J67: A5 | K67: Jan
K68: Feb
K69: Mar
K70: Apr
K71: May
K72: Jun
K73: Jul
K74: Aug
K75: Sep
K76: Oct
K77: Nov
K78: Dec
K79: Annual | L79: =AVERAGE(L67:L78) ->  | M79: =MAX(M67:M78) -> 0 | N79: =AVERAGE(N67:N78) ->  | O79: =MAX(O67:O78) -> 0

Sheet Particulates
A1: =+'Cover Page'!$B$29 -> Annual Performance Report 2023 | E1: =+'Cover Page'!$B$33 -> Lakeside Energy From Waste Ltd
A3: Monitoring of Particulate matter emissions | D3: Whole Installation | G3: See Notes in Cell Q3 | J3: =+A3 -> Monitoring of Particulate matter emissions | N3: Per Combustion Line | Q3: Notes:
Q4: User to add logic to complete Whole installation, Table A5:G18. From the data in Per Combustion Line, Table J6:O79, subject to No. of lines installed
A5: mg/Nm3 | B5: 1/2 Hourly Reference Periods | E5: Daily Reference Periods
A6: =+'Cover Page'!C39 -> 2023 | B6: 1/2 hourly PM ELV | C6: Monthly 1/2 hourly mean | D6: Highest 1/2 hourly maximum | E6: Daily PM ELV* | F6: Monthly daily mean | G6: Highest daily maximum | J6: =+A6 -> 2023 | K6: mg/Nm3 | L6: Monthly 1/2 hourly mean | M6: Monthly 1/2 hourly maximum | N6: Monthly daily mean | O6: Monthly daily maximum
A7: Jan | B7: 30 | C7: =(L7+L22)/2 -> 0.33 | D7: =(M7+M22)/2 -> 2.79 | E7: 10 | F7: =(N7+N22)/2 -> 0.33 | G7: =(O7+O22)/2 -> 0.91 | J7: A1 | K7: Jan | L7: 0.14 | M7: 0.26 | N7: 0.14 | O7: 0.22
A8: Feb | B8: 30 | C8: =(L8+L23)/2 -> 0.5 | D8: =(M8+M23)/2 -> 5.715 | E8: 10 | F8: =(N8+N23)/2 -> 0.5 | G8: =(O8+O23)/2 -> 3.08 | K8: Feb | L8: 0.15 | M8: 2.7 | N8: 0.15 | O8: 0.36
A9: Mar | B9: 30 | C9: 0.41 | D9: 4.935 | E9: 10 | F9: 0.405 | G9: 2.03 | K9: Mar | L9: 0.33 | M9: 3.21 | N9: 0.32 | O9: 1.32 | Q9: Whole Installation table A5:G18:
A10: Apr | B10: 30 | C10: 0.605 | D10: 3.095 | E10: 10 | F10: 0.385 | G10: 0.62 | K10: Apr | L10: 0.7 | M10: 2.34 | N10: 0.27 | O10: 0.44 | Q10: Mean: for 1/2 hourly and daily periods calculate mean of values across all operational combustion lines for the month
A11: May | B11: 30 | C11: 0.46 | D11: 4.535 | E11: 10 | F11: 0.46 | G11: 1.265 | K11: May | L11: 0.27 | M11: 1.64 | N11: 0.27 | O11: 0.36
A12: Jun | B12: 30 | C12: 1.01 | D12: 11.38 | E12: 10 | F12: 1.01 | G12: 5.75 | K12: Jun | L12: 1.59 | M12: 15.55 | N12: 1.59 | O12: 6.82
A13: Jul | B13: 30 | C13: 0.53 | D13: 25.055 | E13: 10 | F13: 0.53 | G13: 3.7 | K13: Jul | L13: 0.3 | M13: 41.4 | N13: 0.3 | O13: 1.47 | Q13: Maximum: for 1/2 hourly and daily periods use the highest value across all operational combustion lines for the month
A14: Aug | B14: 30 | C14: 0.26 | D14: 6.355 | E14: 10 | F14: 0.26 | G14: 1.625 | K14: Aug | L14: 0.35 | M14: 10.09 | N14: 0.35 | O14: 2.91
A15: Sep | B15: 30 | C15: 0.195 | D15: 0.705 | E15: 10 | F15: 0.195 | G15: 0.235 | K15: Sep | L15: 0.24 | M15: 0.47 | N15: 0.24 | O15: 0.28
A16: Oct | B16: 30 | C16: 0.205 | D16: 0.81 | E16: 10 | F16: 0.205 | G16: 0.565 | K16: Oct | L16: 0.29 | M16: 1.22 | N16: 0.29 | O16: 0.97
A17: Nov | B17: 30 | C17: 0.2 | D17: 1.005 | E17: 10 | F17: 0.2 | G17: 0.305 | K17: Nov | L17: 0.25 | M17: 0.78 | N17: 0.25 | O17: 0.35
A18: Dec | B18: 30 | C18: 0.985 | D18: 4.715 | E18: 10 | F18: 0.985 | G18: 2.57 | K18: Dec | L18: 1.75 | M18: 6.15 | N18: 1.75 | O18: 4.67
E19: * ELV reduced to 5 mg/Nm3 on 3 December 2023 | K19: Annual | L19: =AVERAGE(L7:L18) -> 0.53 | M19: =MAX(M7:M18) -> 41.4 | N19: =AVERAGE(N7:N18) -> 0.4933333333 | O19: =MAX(O7:O18) -> 6.82
J21: =+A6 -> 2023 | K21: mg/Nm3 | L21: Monthly 1/2 hourly mean | M21: Monthly 1/2 hourly maximum | N21: Monthly daily mean | O21: Monthly daily maximum
J22: A2 | K22: Jan | L22: 0.52 | M22: 5.32 | N22: 0.52 | O22: 1.6
K23: Feb | L23: 0.85 | M23: 8.73 | N23: 0.85 | O23: 5.8
K24: Mar | L24: 0.49 | M24: 6.66 | N24: 0.49 | O24: 2.74
K25: Apr | L25: 0.51 | M25: 3.85 | N25: 0.5 | O25: 0.8
K26: May | L26: 0.65 | M26: 7.43 | N26: 0.65 | O26: 2.17
K27: Jun | L27: 0.43 | M27: 7.21 | N27: 0.43 | O27: 4.68
K28: Jul | L28: 0.76 | M28: 8.71 | N28: 0.76 | O28: 5.93
K29: Aug | L29: 0.17 | M29: 2.62 | N29: 0.17 | O29: 0.34
K30: Sep | L30: 0.15 | M30: 0.94 | N30: 0.15 | O30: 0.19
K31: Oct | L31: 0.12 | M31: 0.4 | N31: 0.12 | O31: 0.16
K32: Nov | L32: 0.15 | M32: 1.23 | N32: 0.15 | O32: 0.26
K33: Dec | L33: 0.22 | M33: 3.28 | N33: 0.22 | O33: 0.47
K34: Annual | L34: =AVERAGE(L22:L33) -> 0.4183333333 | M34: =MAX(M22:M33) -> 8.73 | N34: =AVERAGE(N22:N33) -> 0.4175 | O34: =MAX(O22:O33) -> 5.93
J36: =+A6 -> 2023 | K36: mg/Nm3 | L36: Monthly 1/2 hourly mean | M36: Monthly 1/2 hourly maximum | N36: Monthly daily mean | O36: Monthly daily maximum
J37: A3 | K37: Jan
K38: Feb
K39: Mar
K40: Apr
K41: May
K42: Jun
K43: Jul
K44: Aug
K45: Sep
K46: Oct
K47: Nov
A48: Comments : | K48: Dec
K49: Annual | L49: =AVERAGE(L37:L48) ->  | M49: =MAX(M37:M48) -> 0 | N49: =AVERAGE(N37:N48) ->  | O49: =MAX(O37:O48) -> 0
J51: =+A6 -> 2023 | K51: mg/Nm3 | L51: Monthly 1/2 hourly mean | M51: Monthly 1/2 hourly maximum | N51: Monthly daily mean | O51: Monthly daily maximum
J52: A4 | K52: Jan
K53: Feb
K54: Mar
K55: Apr
K56: May
K57: Jun
K58: Jul
K59: Aug
K60: Sep
K61: Oct
K62: Nov
K63: Dec
K64: Annual | L64: =AVERAGE(L52:L63) ->  | M64: =MAX(M52:M63) -> 0 | N64: =AVERAGE(N52:N63) ->  | O64: =MAX(O52:O63) -> 0
J66: =+A6 -> 2023 | K66: mg/Nm3 | L66: Monthly 1/2 hourly mean | M66: Monthly 1/2 hourly maximum | N66: Monthly daily mean | O66: Monthly daily maximum
J67: A5 | K67: Jan
K68: Feb
K69: Mar
K70: Apr
K71: May
K72: Jun
K73: Jul
K74: Aug
K75: Sep
K76: Oct
K77: Nov
K78: Dec
K79: Annual | L79: =AVERAGE(L67:L78) ->  | M79: =MAX(M67:M78) -> 0 | N79: =AVERAGE(N67:N78) ->  | O79: =MAX(O67:O78) -> 0

Sheet CO 0.5 hourly
A1: =+'Cover Page'!$B$29 -> Annual Performance Report 2023 | E1: =+'Cover Page'!$B$33 -> Lakeside Energy From Waste Ltd
A3: Monitoring of Carbon Monoxide (half hourly) | D3: Whole Installation | G3: See Notes in Cell Q3 | J3: =+A3 -> Monitoring of Carbon Monoxide (half hourly) | N3: Per Combustion Line | Q3: Notes:
A5: Please complete this tab for your plant if you have 1/2 hourly CO ELVs; otherwise, leave it blank and complete the CO 95% 10 min tab
Q7: User to add logic to complete Whole installation, Table A5:G18. From the data in Per Combustion Line, Table J6:O79, subject to No. of lines installed
A8: mg/Nm3 | B8: 1/2 Hourly Reference Periods | E8: Daily Reference Periods
A9: =+'Cover Page'!C39 -> 2023 | B9: 1/2 hourly CO ELV | C9: Monthly 1/2 hourly mean | D9: Highest 1/2 hourly maximum | E9: Daily CO ELV | F9: Monthly daily mean | G9: Highest daily maximum | J9: =+A9 -> 2023 | K9: mg/Nm3 | L9: Monthly 1/2 hourly mean | M9: Monthly 1/2 hourly maximum | N9: Monthly daily mean | O9: Monthly daily maximum
A10: Jan | B10: 100 | E10: 50 | J10: A1 | K10: Jan
A11: Feb | B11: =+B10 -> 100 | E11: =+E10 -> 50 | K11: Feb
A12: Mar | B12: =+B11 -> 100 | E12: =+E11 -> 50 | K12: Mar | Q12: Whole Installation table A5:G18:
A13: Apr | B13: 100 | E13: 50 | K13: Apr | Q13: Mean: for 1/2 hourly and daily periods calculate mean of values across all operational combustion lines for the month
A14: May | B14: 100 | E14: 50 | K14: May
A15: Jun | B15: 100 | E15: 50 | K15: Jun
A16: Jul | B16: 100 | E16: 50 | K16: Jul | Q16: Maximum: for 1/2 hourly and daily periods use the highest value across all operational combustion lines for the month
A17: Aug | B17: 100 | E17: 50 | K17: Aug
A18: Sep | B18: 100 | E18: 50 | K18: Sep
A19: Oct | B19: 100 | E19: 50 | K19: Oct
A20: Nov | B20: 100 | E20: 50 | K20: Nov
A21: Dec | B21: 100 | E21: 50 | K21: Dec
K22: Annual | L22: =AVERAGE(L10:L21) ->  | M22: =MAX(M10:M21) -> 0 | N22: =AVERAGE(N10:N21) ->  | O22: =MAX(O10:O21) -> 0
J24: =+A9 -> 2023 | K24: mg/Nm3 | L24: Monthly 1/2 hourly mean | M24: Monthly 1/2 hourly maximum | N24: Monthly daily mean | O24: Monthly daily maximum
J25: A2 | K25: Jan
K26: Feb
K27: Mar
K28: Apr
K29: May
K30: Jun
K31: Jul
K32: Aug
K33: Sep
K34: Oct
K35: Nov
K36: Dec
K37: Annual | L37: =AVERAGE(L25:L36) ->  | M37: =MAX(M25:M36) -> 0 | N37: =AVERAGE(N25:N36) ->  | O37: =MAX(O25:O36) -> 0
J39: =+A9 -> 2023 | K39: mg/Nm3 | L39: Monthly 1/2 hourly mean | M39: Monthly 1/2 hourly maximum | N39: Monthly daily mean | O39: Monthly daily maximum
J40: A3 | K40: Jan
K41: Feb
K42: Mar
K43: Apr
K44: May
K45: Jun
K46: Jul
K47: Aug
K48: Sep
K49: Oct
K50: Nov
A51: Comments : | K51: Dec
K52: Annual | L52: =AVERAGE(L40:L51) ->  | M52: =MAX(M40:M51) -> 0 | N52: =AVERAGE(N40:N51) ->  | O52: =MAX(O40:O51) -> 0
J54: =+A9 -> 2023 | K54: mg/Nm3 | L54: Monthly 1/2 hourly mean | M54: Monthly 1/2 hourly maximum | N54: Monthly daily mean | O54: Monthly daily maximum
J55: A4 | K55: Jan
K56: Feb
K57: Mar
K58: Apr
K59: May
K60: Jun
K61: Jul
K62: Aug
K63: Sep
K64: Oct
K65: Nov
K66: Dec
K67: Annual | L67: =AVERAGE(L55:L66) ->  | M67: =MAX(M55:M66) -> 0 | N67: =AVERAGE(N55:N66) ->  | O67: =MAX(O55:O66) -> 0
J69: =+A9 -> 2023 | K69: mg/Nm3 | L69: Monthly 1/2 hourly mean | M69: Monthly 1/2 hourly maximum | N69: Monthly daily mean | O69: Monthly daily maximum
J70: A5 | K70: Jan
K71: Feb
K72: Mar
K73: Apr
K74: May
K75: Jun
K76: Jul
K77: Aug
K78: Sep
K79: Oct
K80: Nov
K81: Dec
K82: Annual | L82: =AVERAGE(L70:L81) ->  | M82: =MAX(M70:M81) -> 0 | N82: =AVERAGE(N70:N81) ->  | O82: =MAX(O70:O81) -> 0

Sheet CO 95% 10 min
A1: =+'Cover Page'!$B$29 -> Annual Performance Report 2023 | E1: =+'Cover Page'!$B$33 -> Lakeside Energy From Waste Ltd
A3: Monitoring of Carbon Monoxide (10-minute avg) | E3: Whole Installation | H3: See Notes in Cell S3 | J3: =+A3 -> Monitoring of Carbon Monoxide (10-minute avg) | O3: Per Combustion Line | Q3: Notes: | S3: Notes:
A5: Please complete this tab for your plant if you have 10-minute average CO ELVs; otherwise, leave it blank and complete the CO 0.5 hourly tab
S7: User to add logic to complete Whole installation, Table A5:H18. From the data in Per Combustion Line, Table K6:Q79, subject to No. of lines installed
A8: mg/Nm3 | B8: 10-minute Reference Periods | F8: Daily Reference Periods
A9: =+'Cover Page'!C39 -> 2023 | B9: 95%ile 10-min avg CO ELV | C9: 95%ile 10-min avg maximum | D9: Monthly CO 10-min avg mean | E9: 10-min avg maximum | F9: Daily CO ELV | G9: Monthly daily mean | H9: Highest daily maximum | K9: =+A9 -> 2023 | L9: mg/Nm3 | M9: 95%ile 10-min avg maximum | N9: Monthly CO 10-min avg mean | O9: 10-min avg maximum | P9: Monthly daily mean | Q9: Monthly daily maximum
A10: Jan | B10: 150 | C10: =+(M10+M25)/2 -> 16.73 | D10: =+(N10+N25)/2 -> 2.955 | E10: =+(O10+O25)/2 -> 440.57 | F10: 50 | G10: =(P10+P25)/2 -> 2.96 | H10: =(Q10+Q25)/2 -> 5.97 | K10: A1 | L10: Jan | M10: 18.61 | N10: 2.87 | O10: 601.4 | P10: 2.88 | Q10: 6.41
A11: Feb | B11: =+B10 -> 150 | C11: =+(M11+M26)/2 -> 21.67 | D11: =+(N11+N26)/2 -> 3.54 | E11: =+(O11+O26)/2 -> 398.42 | F11: =+F10 -> 50 | G11: =(P11+P26)/2 -> 3.535 | H11: =(Q11+Q26)/2 -> 9.09 | L11: Feb | M11: 18.47 | N11: 3.34 | O11: 451.46 | P11: 3.33 | Q11: 8.34
A12: Mar | B12: =+B11 -> 150 | C12: 24.105 | D12: 4.495 | E12: 622.32 | F12: =+F11 -> 50 | G12: 4.505 | H12: 9.27 | L12: Mar | M12: 16.16 | N12: 3.96 | O12: 592.12 | P12: 3.98 | Q12: 8.21 | S12: Whole Installation table A5:H18:
A13: Apr | B13: 150 | C13: 31.63 | D13: 4.625 | E13: 253.395 | F13: 50 | G13: 4.43 | H13: 8.655 | L13: Apr | M13: 48.37 | N13: 7.84 | O13: 315.71 | P13: 7.45 | Q13: 11.94 | S13: Mean: for 10-min and daily periods use average of all operational combustion lines.
A14: May | B14: 150 | C14: 39.695 | D14: 5.975 | E14: 395.185 | F14: 50 | G14: 6.075 | H14: 13.25 | L14: May | M14: 38.66 | N14: 5.92 | O14: 675.18 | P14: 5.91 | Q14: 10.92
A15: Jun | B15: 150 | C15: 54.495 | D15: 6.215 | E15: 707.02 | F15: 50 | G15: 6.07 | H15: 12.42 | L15: Jun | M15: 35.49 | N15: 7.33 | O15: 823.93 | P15: 7.04 | Q15: 12.5
A16: Jul | B16: 150 | C16: 63.18 | D16: 6.885 | E16: 485.51 | F16: 50 | G16: 6.885 | H16: 12.785 | L16: Jul | M16: 54.71 | N16: 8.67 | O16: 615.76 | P16: 8.67 | Q16: 14.03 | S16: Maximum: for 10-min and daily periods use the highest of all operational combustion lines in any month.
A17: Aug | B17: 150 | C17: 69.925 | D17: 8.17 | E17: 701.94 | F17: 50 | G17: 8.175 | H17: 16.555 | L17: Aug | M17: 55.48 | N17: 9.75 | O17: 619.28 | P17: 9.76 | Q17: 19.89
A18: Sep | B18: 150 | C18: 105.31 | D18: 7.71 | E18: 464.2 | F18: 50 | G18: 7.745 | H18: 18.335 | L18: Sep | M18: 121.4 | N18: 7.98 | O18: 354.28 | P18: 7.98 | Q18: 17.43
A19: Oct | B19: 150 | C19: 73.595 | D19: 8.105 | E19: 473.505 | F19: 50 | G19: 8.115 | H19: 15.59 | L19: Oct | M19: 50.2 | N19: 8.97 | O19: 334.94 | P19: 8.98 | Q19: 13.18
A20: Nov | B20: 150 | C20: 49.48 | D20: 5.64 | E20: 410.295 | F20: 50 | G20: 5.63 | H20: 11.285 | L20: Nov | M20: 55.42 | N20: 7.27 | O20: 477.32 | P20: 7.25 | Q20: 13.95
A21: Dec | B21: 150 | C21: 41.065 | D21: 5.845 | E21: 343.76 | F21: 50 | G21: 5.835 | H21: 13.23 | L21: Dec | M21: 56.6 | N21: 6.57 | O21: 376.92 | P21: 6.55 | Q21: 16.49
L22: Annual | M22: =AVERAGE(M10:M21) -> 47.46416667 | N22: =AVERAGE(N10:N21) -> 6.705833333 | O22: =MAX(O10:O21) -> 823.93 | P22: =AVERAGE(P10:P21) -> 6.648333333 | Q22: =MAX(Q10:Q21) -> 19.89
K24: =+A9 -> 2023 | L24: mg/Nm3 | M24: 95%ile 10-min avg maximum | N24: Monthly CO 10-min avg mean | O24: 10-min avg maximum | P24: Monthly daily mean | Q24: Monthly daily maximum
K25: A2 | L25: Jan | M25: 14.85 | N25: 3.04 | O25: 279.74 | P25: 3.04 | Q25: 5.53
L26: Feb | M26: 24.87 | N26: 3.74 | O26: 345.38 | P26: 3.74 | Q26: 9.84
L27: Mar | M27: 32.05 | N27: 5.03 | O27: 652.52 | P27: 5.03 | Q27: 10.33
L28: Apr | M28: 14.89 | N28: 1.41 | O28: 191.08 | P28: 1.41 | Q28: 5.37
L29: May | M29: 40.73 | N29: 6.03 | O29: 115.19 | P29: 6.24 | Q29: 15.58
L30: Jun | M30: 73.5 | N30: 5.1 | O30: 590.11 | P30: 5.1 | Q30: 12.34
L31: Jul | M31: 71.65 | N31: 5.1 | O31: 355.26 | P31: 5.1 | Q31: 11.54
L32: Aug | M32: 84.37 | N32: 6.59 | O32: 784.6 | P32: 6.59 | Q32: 13.22
L33: Sep | M33: 89.22 | N33: 7.44 | O33: 574.12 | P33: 7.51 | Q33: 19.24
L34: Oct | M34: 96.99 | N34: 7.24 | O34: 612.07 | P34: 7.25 | Q34: 18
L35: Nov | M35: 43.54 | N35: 4.01 | O35: 343.27 | P35: 4.01 | Q35: 8.62
L36: Dec | M36: 25.53 | N36: 5.12 | O36: 310.6 | P36: 5.12 | Q36: 9.97
L37: Annual | M37: =AVERAGE(M25:M36) -> 51.01583333 | N37: =AVERAGE(N25:N36) -> 4.9875 | O37: =MAX(O25:O36) -> 784.6 | P37: =AVERAGE(P25:P36) -> 5.011666667 | Q37: =MAX(Q25:Q36) -> 19.24
K39: =+A9 -> 2023 | L39: mg/Nm3 | M39: 95%ile 10-min avg maximum | N39: Monthly CO 10-min avg mean | O39: 10-min avg maximum | P39: Monthly daily mean | Q39: Monthly daily maximum
K40: A3 | L40: Jan
L41: Feb
L42: Mar
L43: Apr
L44: May
L45: Jun
L46: Jul
L47: Aug
L48: Sep
L49: Oct
L50: Nov
A51: Comments : | L51: Dec
A52: Environment Agency explanatory note: The 10-minute average ELV is based on the “95th percentile”. In this case this means that 95% of the 10 minute averages in the relevant 24-hour period (i.e. 137) must be below 150 mg/Nm3, and 5% (i.e. 7) are allowed to be any value above 150 mg/Nm3. Whilst we expect operators to minimise CO emissions at all times, it is perfectly acceptable for the value of the maximum 10-minute average to be above 150 mg/Nm3, provided the 95th percentile ELV has been met for that period. | L52: Annual | M52: =AVERAGE(M40:M51) ->  | O52: =MAX(O40:O51) -> 0 | P52: =AVERAGE(P40:P51) ->  | Q52: =MAX(Q40:Q51) -> 0
K54: =+A9 -> 2023 | L54: mg/Nm3 | M54: 95%ile 10-min avg maximum | N54: Monthly CO 10-min avg mean | O54: 10-min avg maximum | P54: Monthly daily mean | Q54: Monthly daily maximum
K55: A4 | L55: Jan
L56: Feb
L57: Mar
L58: Apr
L59: May
L60: Jun
L61: Jul
L62: Aug
L63: Sep
L64: Oct
L65: Nov
L66: Dec
L67: Annual | M67: =AVERAGE(M55:M66) ->  | O67: =MAX(O55:O66) -> 0 | P67: =AVERAGE(P55:P66) ->  | Q67: =MAX(Q55:Q66) -> 0
K69: =+A9 -> 2023 | L69: mg/Nm3 | M69: 95%ile 10-min avg maximum | N69: Monthly CO 10-min avg mean | O69: 10-min avg maximum | P69: Monthly daily mean | Q69: Monthly daily maximum
K70: A5 | L70: Jan
L71: Feb
L72: Mar
L73: Apr
L74: May
L75: Jun
L76: Jul
L77: Aug
L78: Sep
L79: Oct
L80: Nov
L81: Dec
L82: Annual | M82: =AVERAGE(M70:M81) ->  | O82: =MAX(O70:O81) -> 0 | P82: =AVERAGE(P70:P81) ->  | Q82: =MAX(Q70:Q81) -> 0

Sheet NH3
A1: =+'Cover Page'!$B$29 -> Annual Performance Report 2023 | E1: =+'Cover Page'!$B$33 -> Lakeside Energy From Waste Ltd
A3: Monitoring of Ammnonia emissions | D3: Whole Installation | G3: See Notes in Cell Q3 | J3: =+A3 -> Monitoring of Ammnonia emissions | N3: Per Combustion Line | Q3: Notes:
Q4: User to add logic to complete Whole installation, Table A5:G18. From the data in Per Combustion Line, Table J6:O79, subject to No. of lines installed
A5: mg/Nm3 | B5: 1/2 Hourly Reference Periods | E5: Daily Reference Periods
A6: =+'Cover Page'!C39 -> 2023 | B6: 1/2 hourly NH3 ELV | C6: Monthly 1/2 hourly mean | D6: Highest 1/2 hourly maximum | E6: Daily NH3 ELV* | F6: Monthly daily mean | G6: Highest daily maximum | J6: =+A6 -> 2023 | K6: mg/Nm3 | L6: Monthly 1/2 hourly mean | M6: Monthly 1/2 hourly maximum | N6: Monthly daily mean | O6: Monthly daily maximum
A7: Jan | B7: None | C7: =(L7+L22)/2 -> 0.02 | D7: =(M7+M22)/2 -> 1.445 | E7: None | F7: =(N7+N22)/2 -> 0.02 | G7: =(O7+O22)/2 -> 0.125 | J7: A1 | K7: Jan | L7: -0.06 | M7: 1.5 | N7: -0.06 | O7: 0.06
A8: Feb | B8: =+B7 -> None | C8: =(L8+L23)/2 -> 0.015 | D8: =(M8+M23)/2 -> 0.895 | E8: None | F8: =(N8+N23)/2 -> 0.015 | G8: =(O8+O23)/2 -> 0.115 | K8: Feb | L8: -0.08 | M8: 0.91 | N8: -0.08 | O8: 0.02
A9: Mar | B9: =+B8 -> None | C9: -0.025 | D9: 1.76 | E9: None | F9: -0.025 | G9: 0.09 | K9: Mar | L9: -0.16 | M9: 0.85 | N9: -0.16 | O9: -0.12 | Q9: Whole Installation table A5:G18:
A10: Apr | B10: None | C10: 0.015 | D10: 1.275 | E10: None | F10: 0.015 | G10: 0.145 | K10: Apr | L10: -0.06 | M10: 0.71 | N10: -0.06 | O10: 0.11 | Q10: Mean: for 1/2 hourly and daily periods calculate mean of values across all operational combustion lines for the month
A11: May | B11: None | C11: 0.05 | D11: 0.87 | E11: None | F11: 0.05 | G11: 0.27 | K11: May | L11: -0.1 | M11: 0.79 | N11: -0.1 | O11: 0.07
A12: Jun | B12: None | C12: 0.05 | D12: 6.26 | E12: None | F12: 0.05 | G12: 0.21 | K12: Jun | L12: -0.05 | M12: 10.39 | N12: -0.05 | O12: 0.17
A13: Jul | B13: None | C13: 0.075 | D13: 1.385 | E13: None | F13: 0.075 | G13: 0.27 | K13: Jul | L13: -0.01 | M13: 1.47 | N13: -0.01 | O13: 0.22 | Q13: Maximum: for 1/2 hourly and daily periods use the highest value across all operational combustion lines for the month
A14: Aug | B14: None | C14: 0.07 | D14: 1.125 | E14: None | F14: 0.07 | G14: 0.275 | K14: Aug | L14: -0.03 | M14: 1.45 | N14: -0.03 | O14: 0.26
A15: Sep | B15: None | C15: 0.06 | D15: 0.86 | E15: None | F15: 0.05 | G15: 0.26 | K15: Sep | L15: -0.05 | M15: 0.82 | N15: -0.07 | O15: 0.24
A16: Oct | B16: None | C16: 0.085 | D16: 0.805 | E16: None | F16: 0.085 | G16: 0.215 | K16: Oct | L16: 0 | M16: 0.74 | N16: 0 | O16: 0.13
A17: Nov | B17: None | C17: 0.035 | D17: 0.515 | E17: None | F17: 0.035 | G17: 0.155 | K17: Nov | L17: -0.02 | M17: 0.71 | N17: -0.02 | O17: 0.13
A18: Dec | B18: None | C18: 0.05 | D18: 0.505 | E18: 15 | F18: 0.05 | G18: 0.23 | K18: Dec | L18: 0.04 | M18: 0.72 | N18: 0.04 | O18: 0.32
E19: * ELV came into force on 3 December 2023 | K19: Annual | L19: =AVERAGE(L7:L18) -> -0.04833333333 | M19: =MAX(M7:M18) -> 10.39 | N19: =AVERAGE(N7:N18) -> -0.05 | O19: =MAX(O7:O18) -> 0.32
J21: =+A6 -> 2023 | K21: mg/Nm3 | L21: Monthly 1/2 hourly mean | M21: Monthly 1/2 hourly maximum | N21: Monthly daily mean | O21: Monthly daily maximum
J22: A2 | K22: Jan | L22: 0.1 | M22: 1.39 | N22: 0.1 | O22: 0.19
K23: Feb | L23: 0.11 | M23: 0.88 | N23: 0.11 | O23: 0.21
K24: Mar | L24: 0.11 | M24: 2.67 | N24: 0.11 | O24: 0.3
K25: Apr | L25: 0.09 | M25: 1.84 | N25: 0.09 | O25: 0.18
K26: May | L26: 0.2 | M26: 0.95 | N26: 0.2 | O26: 0.47
K27: Jun | L27: 0.15 | M27: 2.13 | N27: 0.15 | O27: 0.25
K28: Jul | L28: 0.16 | M28: 1.3 | N28: 0.16 | O28: 0.32
K29: Aug | L29: 0.17 | M29: 0.8 | N29: 0.17 | O29: 0.29
K30: Sep | L30: 0.17 | M30: 0.9 | N30: 0.17 | O30: 0.28
K31: Oct | L31: 0.17 | M31: 0.87 | N31: 0.17 | O31: 0.3
K32: Nov | L32: 0.09 | M32: 0.32 | N32: 0.09 | O32: 0.18
K33: Dec | L33: 0.06 | M33: 0.29 | N33: 0.06 | O33: 0.14
K34: Annual | L34: =AVERAGE(L22:L33) -> 0.1316666667 | M34: =MAX(M22:M33) -> 2.67 | N34: =AVERAGE(N22:N33) -> 0.1316666667 | O34: =MAX(O22:O33) -> 0.47
J36: =+A6 -> 2023 | K36: mg/Nm3 | L36: Monthly 1/2 hourly mean | M36: Monthly 1/2 hourly maximum | N36: Monthly daily mean | O36: Monthly daily maximum
J37: A3 | K37: Jan
K38: Feb
K39: Mar
K40: Apr
K41: May
K42: Jun
K43: Jul
K44: Aug
K45: Sep
K46: Oct
K47: Nov
A48: Comments : | K48: Dec
A49: An indicated ELV value of zero in the table above means that no ammonia limit is/was set in the permit. | K49: Annual | L49: =AVERAGE(L37:L48) ->  | M49: =MAX(M37:M48) -> 0 | N49: =AVERAGE(N37:N48) ->  | O49: =MAX(O37:O48) -> 0
J51: =+A6 -> 2023 | K51: mg/Nm3 | L51: Monthly 1/2 hourly mean | M51: Monthly 1/2 hourly maximum | N51: Monthly daily mean | O51: Monthly daily maximum
J52: A4 | K52: Jan
K53: Feb
K54: Mar
K55: Apr
K56: May
K57: Jun
K58: Jul
K59: Aug
K60: Sep
K61: Oct
K62: Nov
K63: Dec
K64: Annual | L64: =AVERAGE(L52:L63) ->  | M64: =MAX(M52:M63) -> 0 | N64: =AVERAGE(N52:N63) ->  | O64: =MAX(O52:O63) -> 0
J66: =+A6 -> 2023 | K66: mg/Nm3 | L66: Monthly 1/2 hourly mean | M66: Monthly 1/2 hourly maximum | N66: Monthly daily mean | O66: Monthly daily maximum
J67: A5 | K67: Jan
K68: Feb
K69: Mar
K70: Apr
K71: May
K72: Jun
K73: Jul
K74: Aug
K75: Sep
K76: Oct
K77: Nov
K78: Dec
K79: Annual | L79: =AVERAGE(L67:L78) ->  | M79: =MAX(M67:M78) -> 0 | N79: =AVERAGE(N67:N78) ->  | O79: =MAX(O67:O78) -> 0
